{"text_format":"1","workbook":"xlsx","n_sheets":8,"sheets":["Menu","Cliente","Entregadores","Entregas","Rastreio do Pedido","Dash","Instruções","CALC"],"not_rendered":{"charts":4,"images":9,"macros":1,"external_links":0,"defined_names":9,"comments":0,"pivot_tables":0},"unopened":[],"bounds":{"document_bytes":16777216,"sheet_cells":100000,"rows_first":2000,"rows_last":500,"rows_between":2000,"halvings":0,"cell_chars":16384,"cell_head_chars":4096},"cells_cut":0,"cells_raw":0,"read":"whole","date_system":"1900"}

{"sheet":"Menu","index":0,"n_rows":26,"n_cols":7,"rows_kept":26,"cut":false,"hidden":false,"merged":[[25,4,25,5],[25,6,25,14]]}
[]
[]
[]
[]
[]
[]
[]
[]
[]
[]
[]
[]
[]
[]
[]
[]
[]
[]
[]
[]
[]
[]
[]
[]
[]
[null,null,null,null,"Empresa:",null,"Empresa ABCDE"]

{"sheet":"Cliente","index":1,"n_rows":43,"n_cols":5,"rows_kept":43,"cut":false,"hidden":false,"merged":[[9,2,9,4],[11,1,11,4]]}
[]
[]
[]
[]
[]
[]
[]
[]
[]
[null,"Empresa:",{"$f":"Menu!G26","v":"Empresa ABCDE"}]
[]
[null,"CADASTROS DE CLIENTES\nInsira os dados dos seus clientes."]
[null,"ITEM","CLIENTE","TELEFONE","ENDEREÇO"]
[{"$f":"C14","v":"CLIENTE 1"},1,"CLIENTE 1","99884-0000","Rua Marcelo Correa"]
[{"$f":"C15","v":"CLIENTE 2"},2,"CLIENTE 2",2222222,"Rua Anderson Parrera"]
["CLIENTE 3",3,"CLIENTE 3",33333333,"Villa Fechada"]
["CLIENTE 4",4,"CLIENTE 4",2547888,"Rua Antônio Macedo"]
["CLIENTE 5",5,"CLIENTE 5",33333,"rua 9 de Julho"]
[0,6]
[0,7]
[0,8]
[0,9]
[0,10]
[0,11]
[0,12]
[0,13]
[0,14]
[0,15]
[0,16]
[0,17]
[0,18]
[0,19]
[0,20]
[0,21]
[0,22]
[0,23]
[0,24]
[0,25]
[0,26]
[0,27]
[0,28]
[0,29]
[0,30]

{"sheet":"Entregadores","index":2,"n_rows":43,"n_cols":21,"rows_kept":43,"cut":false,"hidden":false,"merged":[[9,2,9,5],[11,1,11,5]]}
[]
[]
[]
[]
[]
[]
[]
[]
[]
[null,"Empresa:",{"$f":"Menu!G26","v":"Empresa ABCDE"}]
[]
[null,"CADASTROS DE ENTREGADORES\nInsira os dados dos entregadores.",null,null,null,null,null,null,null,null,null,null,{"$f":"COUNTIF($H$14:$H$43,M$13)","v":2},{"$f":"COUNTIF($H$14:$H$43,N$13)","v":1},{"$f":"COUNTIF($H$14:$H$43,O$13)","v":0},null,{"$f":"SUM(Q14:Q43)","v":2},{"$f":"SUM(R14:R43)","v":{"$error":"#REF!"}},{"$f":"SUM(S14:S43)","v":9000},{"$f":"SUM(T14:T43)","v":1600},{"$f":"SUM(U14:U43)","v":7400}]
[null,"ITEM","ENTREGADOR","TELEFONE","TIPO DE CNH","CNH","VENCIMENTO CNH","STATUS CNH",null,null,null,null,"CNH VENCIDA","CNH OK","CNH VENCENDO",null,"Fretes","KM Rodado","ReceitasFretes","DespesasFrete","Saldo"]
[null,1,"JOSÉ DA SILVA","9999-9999","D",123456789,"2021-10-27",{"$f":"IF(G14=\"\",\"\",IF(G14<TODAY(),\"CNH VENCIDA\",IF(G14-TODAY()<30,\"CNH VENCENDO\",\"CNH OK\")))","v":"CNH VENCIDA"},null,null,null,null,null,null,null,null,{"$f":"COUNTIF(Entregas!$G$14:$G$1000,C14)","v":0},{"$f":"SUMIF(Entregas!$G$14:$G$1000,C14,Entregas!#REF!)","v":{"$error":"#REF!"}},{"$f":"SUMIF(Entregas!$G$14:$G$1000,C14,Entregas!$H$14:$H$1000)","v":0},{"$f":"SUMIF(Entregas!$G$14:$G$1000,C14,Entregas!$Q$14:$Q$1000)","v":0},{"$f":"S14-T14","v":0}]
[null,2,"JOÃO PAULO ALVES","8888-8888","D",222222222,"2022-08-15",{"$f":"IF(G15=\"\",\"\",IF(G15<TODAY(),\"CNH VENCIDA\",IF(G15-TODAY()<30,\"CNH VENCENDO\",\"CNH OK\")))","v":"CNH OK"},null,null,null,null,null,null,null,null,{"$f":"COUNTIF(Entregas!$G$14:$G$1000,C15)","v":2},{"$f":"SUMIF(Entregas!$G$14:$G$1000,C15,Entregas!#REF!)","v":{"$error":"#REF!"}},{"$f":"SUMIF(Entregas!$G$14:$G$1000,C15,Entregas!$H$14:$H$1000)","v":9000},{"$f":"SUMIF(Entregas!$G$14:$G$1000,C15,Entregas!$Q$14:$Q$1000)","v":1600},{"$f":"S15-T15","v":7400}]
[null,3,"PEDRO HENRIQUE","7777-7777","AB",5555555,"2021-11-15","CNH VENCIDA",null,null,null,null,null,null,null,null,{"$f":"COUNTIF(Entregas!$G$14:$G$1000,C16)","v":0},{"$f":"SUMIF(Entregas!$G$14:$G$1000,C16,Entregas!#REF!)","v":{"$error":"#REF!"}},{"$f":"SUMIF(Entregas!$G$14:$G$1000,C16,Entregas!$H$14:$H$1000)","v":0},{"$f":"SUMIF(Entregas!$G$14:$G$1000,C16,Entregas!$Q$14:$Q$1000)","v":0},0]
[null,4,null,null,null,null,null,{"$f":"IF(G17=\"\",\"\",IF(G17<TODAY(),\"CNH VENCIDA\",IF(G17-TODAY()<30,\"CNH VENCENDO\",\"CNH OK\")))","v":""},null,null,null,null,null,null,null,null,{"$f":"COUNTIF(Entregas!$G$14:$G$1000,C17)","v":0},{"$f":"SUMIF(Entregas!$G$14:$G$1000,C17,Entregas!#REF!)","v":{"$error":"#REF!"}},{"$f":"SUMIF(Entregas!$G$14:$G$1000,C17,Entregas!$H$14:$H$1000)","v":0},{"$f":"SUMIF(Entregas!$G$14:$G$1000,C17,Entregas!$Q$14:$Q$1000)","v":0},0]
[null,5,null,null,null,null,null,"",null,null,null,null,null,null,null,null,{"$f":"COUNTIF(Entregas!$G$14:$G$1000,C18)","v":0},{"$f":"SUMIF(Entregas!$G$14:$G$1000,C18,Entregas!#REF!)","v":{"$error":"#REF!"}},{"$f":"SUMIF(Entregas!$G$14:$G$1000,C18,Entregas!$H$14:$H$1000)","v":0},{"$f":"SUMIF(Entregas!$G$14:$G$1000,C18,Entregas!$Q$14:$Q$1000)","v":0},0]
[null,6,null,null,null,null,null,"",null,null,null,null,null,null,null,null,{"$f":"COUNTIF(Entregas!$G$14:$G$1000,C19)","v":0},{"$f":"SUMIF(Entregas!$G$14:$G$1000,C19,Entregas!#REF!)","v":{"$error":"#REF!"}},{"$f":"SUMIF(Entregas!$G$14:$G$1000,C19,Entregas!$H$14:$H$1000)","v":0},{"$f":"SUMIF(Entregas!$G$14:$G$1000,C19,Entregas!$Q$14:$Q$1000)","v":0},0]
[null,7,null,null,null,null,null,"",null,null,null,null,null,null,null,null,{"$f":"COUNTIF(Entregas!$G$14:$G$1000,C20)","v":0},{"$f":"SUMIF(Entregas!$G$14:$G$1000,C20,Entregas!#REF!)","v":{"$error":"#REF!"}},{"$f":"SUMIF(Entregas!$G$14:$G$1000,C20,Entregas!$H$14:$H$1000)","v":0},{"$f":"SUMIF(Entregas!$G$14:$G$1000,C20,Entregas!$Q$14:$Q$1000)","v":0},0]
[null,8,null,null,null,null,null,"",null,null,null,null,null,null,null,null,{"$f":"COUNTIF(Entregas!$G$14:$G$1000,C21)","v":0},{"$f":"SUMIF(Entregas!$G$14:$G$1000,C21,Entregas!#REF!)","v":{"$error":"#REF!"}},{"$f":"SUMIF(Entregas!$G$14:$G$1000,C21,Entregas!$H$14:$H$1000)","v":0},{"$f":"SUMIF(Entregas!$G$14:$G$1000,C21,Entregas!$Q$14:$Q$1000)","v":0},0]
[null,9,null,null,null,null,null,"",null,null,null,null,null,null,null,null,{"$f":"COUNTIF(Entregas!$G$14:$G$1000,C22)","v":0},{"$f":"SUMIF(Entregas!$G$14:$G$1000,C22,Entregas!#REF!)","v":{"$error":"#REF!"}},{"$f":"SUMIF(Entregas!$G$14:$G$1000,C22,Entregas!$H$14:$H$1000)","v":0},{"$f":"SUMIF(Entregas!$G$14:$G$1000,C22,Entregas!$Q$14:$Q$1000)","v":0},0]
[null,10,null,null,null,null,null,"",null,null,null,null,null,null,null,null,{"$f":"COUNTIF(Entregas!$G$14:$G$1000,C23)","v":0},{"$f":"SUMIF(Entregas!$G$14:$G$1000,C23,Entregas!#REF!)","v":{"$error":"#REF!"}},{"$f":"SUMIF(Entregas!$G$14:$G$1000,C23,Entregas!$H$14:$H$1000)","v":0},{"$f":"SUMIF(Entregas!$G$14:$G$1000,C23,Entregas!$Q$14:$Q$1000)","v":0},0]
[null,11,null,null,null,null,null,"",null,null,null,null,null,null,null,null,{"$f":"COUNTIF(Entregas!$G$14:$G$1000,C24)","v":0},{"$f":"SUMIF(Entregas!$G$14:$G$1000,C24,Entregas!#REF!)","v":{"$error":"#REF!"}},{"$f":"SUMIF(Entregas!$G$14:$G$1000,C24,Entregas!$H$14:$H$1000)","v":0},{"$f":"SUMIF(Entregas!$G$14:$G$1000,C24,Entregas!$Q$14:$Q$1000)","v":0},0]
[null,12,null,null,null,null,null,"",null,null,null,null,null,null,null,null,{"$f":"COUNTIF(Entregas!$G$14:$G$1000,C25)","v":0},{"$f":"SUMIF(Entregas!$G$14:$G$1000,C25,Entregas!#REF!)","v":{"$error":"#REF!"}},{"$f":"SUMIF(Entregas!$G$14:$G$1000,C25,Entregas!$H$14:$H$1000)","v":0},{"$f":"SUMIF(Entregas!$G$14:$G$1000,C25,Entregas!$Q$14:$Q$1000)","v":0},0]
[null,13,null,null,null,null,null,"",null,null,null,null,null,null,null,null,{"$f":"COUNTIF(Entregas!$G$14:$G$1000,C26)","v":0},{"$f":"SUMIF(Entregas!$G$14:$G$1000,C26,Entregas!#REF!)","v":{"$error":"#REF!"}},{"$f":"SUMIF(Entregas!$G$14:$G$1000,C26,Entregas!$H$14:$H$1000)","v":0},{"$f":"SUMIF(Entregas!$G$14:$G$1000,C26,Entregas!$Q$14:$Q$1000)","v":0},0]
[null,14,null,null,null,null,null,"",null,null,null,null,null,null,null,null,{"$f":"COUNTIF(Entregas!$G$14:$G$1000,C27)","v":0},{"$f":"SUMIF(Entregas!$G$14:$G$1000,C27,Entregas!#REF!)","v":{"$error":"#REF!"}},{"$f":"SUMIF(Entregas!$G$14:$G$1000,C27,Entregas!$H$14:$H$1000)","v":0},{"$f":"SUMIF(Entregas!$G$14:$G$1000,C27,Entregas!$Q$14:$Q$1000)","v":0},0]
[null,15,null,null,null,null,null,"",null,null,null,null,null,null,null,null,{"$f":"COUNTIF(Entregas!$G$14:$G$1000,C28)","v":0},{"$f":"SUMIF(Entregas!$G$14:$G$1000,C28,Entregas!#REF!)","v":{"$error":"#REF!"}},{"$f":"SUMIF(Entregas!$G$14:$G$1000,C28,Entregas!$H$14:$H$1000)","v":0},{"$f":"SUMIF(Entregas!$G$14:$G$1000,C28,Entregas!$Q$14:$Q$1000)","v":0},0]
[null,16,null,null,null,null,null,"",null,null,null,null,null,null,null,null,{"$f":"COUNTIF(Entregas!$G$14:$G$1000,C29)","v":0},{"$f":"SUMIF(Entregas!$G$14:$G$1000,C29,Entregas!#REF!)","v":{"$error":"#REF!"}},{"$f":"SUMIF(Entregas!$G$14:$G$1000,C29,Entregas!$H$14:$H$1000)","v":0},{"$f":"SUMIF(Entregas!$G$14:$G$1000,C29,Entregas!$Q$14:$Q$1000)","v":0},0]
[null,17,null,null,null,null,null,"",null,null,null,null,null,null,null,null,{"$f":"COUNTIF(Entregas!$G$14:$G$1000,C30)","v":0},{"$f":"SUMIF(Entregas!$G$14:$G$1000,C30,Entregas!#REF!)","v":{"$error":"#REF!"}},{"$f":"SUMIF(Entregas!$G$14:$G$1000,C30,Entregas!$H$14:$H$1000)","v":0},{"$f":"SUMIF(Entregas!$G$14:$G$1000,C30,Entregas!$Q$14:$Q$1000)","v":0},0]
[null,18,null,null,null,null,null,"",null,null,null,null,null,null,null,null,{"$f":"COUNTIF(Entregas!$G$14:$G$1000,C31)","v":0},{"$f":"SUMIF(Entregas!$G$14:$G$1000,C31,Entregas!#REF!)","v":{"$error":"#REF!"}},{"$f":"SUMIF(Entregas!$G$14:$G$1000,C31,Entregas!$H$14:$H$1000)","v":0},{"$f":"SUMIF(Entregas!$G$14:$G$1000,C31,Entregas!$Q$14:$Q$1000)","v":0},0]
[null,19,null,null,null,null,null,"",null,null,null,null,null,null,null,null,{"$f":"COUNTIF(Entregas!$G$14:$G$1000,C32)","v":0},{"$f":"SUMIF(Entregas!$G$14:$G$1000,C32,Entregas!#REF!)","v":{"$error":"#REF!"}},{"$f":"SUMIF(Entregas!$G$14:$G$1000,C32,Entregas!$H$14:$H$1000)","v":0},{"$f":"SUMIF(Entregas!$G$14:$G$1000,C32,Entregas!$Q$14:$Q$1000)","v":0},0]
[null,20,null,null,null,null,null,"",null,null,null,null,null,null,null,null,{"$f":"COUNTIF(Entregas!$G$14:$G$1000,C33)","v":0},{"$f":"SUMIF(Entregas!$G$14:$G$1000,C33,Entregas!#REF!)","v":{"$error":"#REF!"}},{"$f":"SUMIF(Entregas!$G$14:$G$1000,C33,Entregas!$H$14:$H$1000)","v":0},{"$f":"SUMIF(Entregas!$G$14:$G$1000,C33,Entregas!$Q$14:$Q$1000)","v":0},0]
[null,21,null,null,null,null,null,"",null,null,null,null,null,null,null,null,{"$f":"COUNTIF(Entregas!$G$14:$G$1000,C34)","v":0},{"$f":"SUMIF(Entregas!$G$14:$G$1000,C34,Entregas!#REF!)","v":{"$error":"#REF!"}},{"$f":"SUMIF(Entregas!$G$14:$G$1000,C34,Entregas!$H$14:$H$1000)","v":0},{"$f":"SUMIF(Entregas!$G$14:$G$1000,C34,Entregas!$Q$14:$Q$1000)","v":0},0]
[null,22,null,null,null,null,null,"",null,null,null,null,null,null,null,null,{"$f":"COUNTIF(Entregas!$G$14:$G$1000,C35)","v":0},{"$f":"SUMIF(Entregas!$G$14:$G$1000,C35,Entregas!#REF!)","v":{"$error":"#REF!"}},{"$f":"SUMIF(Entregas!$G$14:$G$1000,C35,Entregas!$H$14:$H$1000)","v":0},{"$f":"SUMIF(Entregas!$G$14:$G$1000,C35,Entregas!$Q$14:$Q$1000)","v":0},0]
[null,23,null,null,null,null,null,"",null,null,null,null,null,null,null,null,{"$f":"COUNTIF(Entregas!$G$14:$G$1000,C36)","v":0},{"$f":"SUMIF(Entregas!$G$14:$G$1000,C36,Entregas!#REF!)","v":{"$error":"#REF!"}},{"$f":"SUMIF(Entregas!$G$14:$G$1000,C36,Entregas!$H$14:$H$1000)","v":0},{"$f":"SUMIF(Entregas!$G$14:$G$1000,C36,Entregas!$Q$14:$Q$1000)","v":0},0]
[null,24,null,null,null,null,null,"",null,null,null,null,null,null,null,null,{"$f":"COUNTIF(Entregas!$G$14:$G$1000,C37)","v":0},{"$f":"SUMIF(Entregas!$G$14:$G$1000,C37,Entregas!#REF!)","v":{"$error":"#REF!"}},{"$f":"SUMIF(Entregas!$G$14:$G$1000,C37,Entregas!$H$14:$H$1000)","v":0},{"$f":"SUMIF(Entregas!$G$14:$G$1000,C37,Entregas!$Q$14:$Q$1000)","v":0},0]
[null,25,null,null,null,null,null,"",null,null,null,null,null,null,null,null,{"$f":"COUNTIF(Entregas!$G$14:$G$1000,C38)","v":0},{"$f":"SUMIF(Entregas!$G$14:$G$1000,C38,Entregas!#REF!)","v":{"$error":"#REF!"}},{"$f":"SUMIF(Entregas!$G$14:$G$1000,C38,Entregas!$H$14:$H$1000)","v":0},{"$f":"SUMIF(Entregas!$G$14:$G$1000,C38,Entregas!$Q$14:$Q$1000)","v":0},0]
[null,26,null,null,null,null,null,"",null,null,null,null,null,null,null,null,{"$f":"COUNTIF(Entregas!$G$14:$G$1000,C39)","v":0},{"$f":"SUMIF(Entregas!$G$14:$G$1000,C39,Entregas!#REF!)","v":{"$error":"#REF!"}},{"$f":"SUMIF(Entregas!$G$14:$G$1000,C39,Entregas!$H$14:$H$1000)","v":0},{"$f":"SUMIF(Entregas!$G$14:$G$1000,C39,Entregas!$Q$14:$Q$1000)","v":0},0]
[null,27,null,null,null,null,null,"",null,null,null,null,null,null,null,null,{"$f":"COUNTIF(Entregas!$G$14:$G$1000,C40)","v":0},{"$f":"SUMIF(Entregas!$G$14:$G$1000,C40,Entregas!#REF!)","v":{"$error":"#REF!"}},{"$f":"SUMIF(Entregas!$G$14:$G$1000,C40,Entregas!$H$14:$H$1000)","v":0},{"$f":"SUMIF(Entregas!$G$14:$G$1000,C40,Entregas!$Q$14:$Q$1000)","v":0},0]
[null,28,null,null,null,null,null,"",null,null,null,null,null,null,null,null,{"$f":"COUNTIF(Entregas!$G$14:$G$1000,C41)","v":0},{"$f":"SUMIF(Entregas!$G$14:$G$1000,C41,Entregas!#REF!)","v":{"$error":"#REF!"}},{"$f":"SUMIF(Entregas!$G$14:$G$1000,C41,Entregas!$H$14:$H$1000)","v":0},{"$f":"SUMIF(Entregas!$G$14:$G$1000,C41,Entregas!$Q$14:$Q$1000)","v":0},0]
[null,29,null,null,null,null,null,"",null,null,null,null,null,null,null,null,{"$f":"COUNTIF(Entregas!$G$14:$G$1000,C42)","v":0},{"$f":"SUMIF(Entregas!$G$14:$G$1000,C42,Entregas!#REF!)","v":{"$error":"#REF!"}},{"$f":"SUMIF(Entregas!$G$14:$G$1000,C42,Entregas!$H$14:$H$1000)","v":0},{"$f":"SUMIF(Entregas!$G$14:$G$1000,C42,Entregas!$Q$14:$Q$1000)","v":0},0]
[null,30,null,null,null,null,null,"",null,null,null,null,null,null,null,null,{"$f":"COUNTIF(Entregas!$G$14:$G$1000,C43)","v":0},{"$f":"SUMIF(Entregas!$G$14:$G$1000,C43,Entregas!#REF!)","v":{"$error":"#REF!"}},{"$f":"SUMIF(Entregas!$G$14:$G$1000,C43,Entregas!$H$14:$H$1000)","v":0},{"$f":"SUMIF(Entregas!$G$14:$G$1000,C43,Entregas!$Q$14:$Q$1000)","v":0},0]

{"sheet":"Entregas","index":3,"n_rows":1000,"n_cols":18,"rows_kept":1000,"cut":false,"hidden":false,"merged":[[11,1,11,15],[9,2,9,17]]}
[]
[]
[]
[]
[]
[]
[]
[]
[]
[null,"Empresa:",{"$f":"Menu!G26","v":"Empresa ABCDE"}]
[]
[null,"LANÇAMENTO DE ENTREGAS\nInsira os lançamentos das entregas."]
[null,"DATA","N° DO PEDIDO","DESCRIÇÃO DA MERCADORIA","CLIENTE","FASE DO PEDIDO","ENTREGADOR","VALOR ENTREGA","PRAZO ENTREGA PREVISTO","PRAZO MÉDIO DE ENTREGA (DIAS)","PRAZO DE ENTREGA REALIZADO","TEMPO DE ENTREGA","STATUS ENTREGA","DESPESAS COMBUSTÍVEL","DESPESAS MULTAS","OUTRAS DESPESAS","TOTAL DESPESAS","MÊS"]
[{"$f":"C14","v":"555784-6"},"2020-10-01","555784-6","Mercadoria Frágil","CLIENTE 1","PEDIDO RECEBIDO",null,10000,"2020-10-30",10,"2020-10-15",{"$f":"IFERROR(IF(I14=\"\",\"\",IF(K14=\"\",TODAY()-B14,K14-B14)),\"\")","v":14},{"$f":"IFERROR(IF(I14=\"\",\"\",IF(AND(K14=\"\",I14>=TODAY()),\"EM ANDAMENTO\",IF(AND(K14=\"\",I14<TODAY()),\"ENTREGA ATRASADA\",IF(AND(K14<>\"\",K14-I14<0),\"ENTREGOU NO PRAZO\",\"ENTREGOU ATRASADO\")))),\"\")","v":"ENTREGOU NO PRAZO"},500,0,300,{"$f":"SUM(N14:P14)","v":800},{"$f":"IF(B14=\"\",\"\",MONTH(B14))","v":10}]
[{"$f":"C15","v":"555784-7"},"2020-10-02","555784-7","Mercadoria Frágil","CLIENTE 2","EM SEPARAÇÃO",null,12000,"2020-10-20",null,null,468,"ENTREGA ATRASADA",800,0,300,{"$f":"SUM(N15:P15)","v":1100},10]
["555784-8","2020-10-03","555784-8","Mercadoria Frágil","CLIENTE 2","DISPONÍVEL",null,9500,"2020-10-20",null,"2020-10-21",18,"ENTREGOU ATRASADO",600,0,300,900,10]
["555784-9","2020-10-04","555784-9","Mercadoria Frágil","CLIENTE 3","PROGRAMAR ENTREGA","JOÃO PAULO ALVES",4000,"2020-11-02",null,null,466,"ENTREGA ATRASADA",400,0,300,700,10]
["555784-10","2020-10-05","555784-10","Mercadoria Frágil","CLIENTE 4","COM A TRANSPORTADORA","JOÃO PAULO ALVES",5000,"2020-11-03",null,null,465,"ENTREGA ATRASADA",600,0,300,900,10]
["99987485/55-1","2021-10-25","99987485/55-1","Mercadoria Frágil","CLIENTE 5","DISPONÍVEL",null,4600,"2021-11-05",5,"2021-11-03",9,"ENTREGOU NO PRAZO",250,null,300,550,10]
["99987485/55-2","2021-10-26","99987485/55-2","Mercadoria Frágil","CLIENTE 4","EM SEPARAÇÃO",null,5500,"2021-11-06",7,"2021-11-05",10,"ENTREGOU NO PRAZO",null,null,null,0,10]
[0,null,null,null,null,null,null,null,null,null,null,"","",null,null,null,0,""]
[0,null,null,null,null,null,null,null,null,null,null,"","",null,null,null,0,""]
[0,null,null,null,null,null,null,null,null,null,null,"","",null,null,null,0,""]
[0,null,null,null,null,null,null,null,null,null,null,"","",null,null,null,0,""]
[0,null,null,null,null,null,null,null,null,null,null,"","",null,null,null,0,""]
[0,null,null,null,null,null,null,null,null,null,null,"","",null,null,null,0,""]
[0,null,null,null,null,null,null,null,null,null,null,"","",null,null,null,0,""]
[0,null,null,null,null,null,null,null,null,null,null,"","",null,null,null,0,""]
[0,null,null,null,null,null,null,null,null,null,null,"","",null,null,null,0,""]
[0,null,null,null,null,null,null,null,null,null,null,"","",null,null,null,0,""]
[0,null,null,null,null,null,null,null,null,null,null,"","",null,null,null,0,""]
[0,null,null,null,null,null,null,null,null,null,null,"","",null,null,null,0,""]
[0,null,null,null,null,null,null,null,null,null,null,"","",null,null,null,0,""]
[0,null,null,null,null,null,null,null,null,null,null,"","",null,null,null,0,""]
[0,null,null,null,null,null,null,null,null,null,null,"","",null,null,null,0,""]
[0,null,null,null,null,null,null,null,null,null,null,"","",null,null,null,0,""]
[0,null,null,null,null,null,null,null,null,null,null,"","",null,null,null,0,""]
[0,null,null,null,null,null,null,null,null,null,null,"","",null,null,null,0,""]
[0,null,null,null,null,null,null,null,null,null,null,"","",null,null,null,0,""]
[0,null,null,null,null,null,null,null,null,null,null,"","",null,null,null,0,""]
[0,null,null,null,null,null,null,null,null,null,null,"","",null,null,null,0,""]
[0,null,null,null,null,null,null,null,null,null,null,"","",null,null,null,0,""]
[0,null,null,null,null,null,null,null,null,null,null,"","",null,null,null,0,""]
[0,null,null,null,null,null,null,null,null,null,null,"","",null,null,null,{"$f":"SUM(N44:P44)","v":0},""]
[0,null,null,null,null,null,null,null,null,null,null,"","",null,null,null,0,""]
[0,null,null,null,null,null,null,null,null,null,null,"","",null,null,null,0,""]
[0,null,null,null,null,null,null,null,null,null,null,"","",null,null,null,0,""]
[0,null,null,null,null,null,null,null,null,null,null,"","",null,null,null,0,""]
[0,null,null,null,null,null,null,null,null,null,null,"","",null,null,null,0,""]
[0,null,null,null,null,null,null,null,null,null,null,"","",null,null,null,0,""]
[0,null,null,null,null,null,null,null,null,null,null,"","",null,null,null,0,""]
[0,null,null,null,null,null,null,null,null,null,null,"","",null,null,null,0,""]
[0,null,null,null,null,null,null,null,null,null,null,"","",null,null,null,0,""]
[0,null,null,null,null,null,null,null,null,null,null,"","",null,null,null,0,""]
[0,null,null,null,null,null,null,null,null,null,null,"","",null,null,null,0,""]
[0,null,null,null,null,null,null,null,null,null,null,"","",null,null,null,0,""]
[0,null,null,null,null,null,null,null,null,null,null,"","",null,null,null,0,""]
[0,null,null,null,null,null,null,null,null,null,null,"","",null,null,null,0,""]
[0,null,null,null,null,null,null,null,null,null,null,"","",null,null,null,0,""]
[0,null,null,null,null,null,null,null,null,null,null,"","",null,null,null,0,""]
[0,null,null,null,null,null,null,null,null,null,null,"","",null,null,null,0,""]
[0,null,null,null,null,null,null,null,null,null,null,"","",null,null,null,0,""]
[0,null,null,null,null,null,null,null,null,null,null,"","",null,null,null,0,""]
[0,null,null,null,null,null,null,null,null,null,null,"","",null,null,null,0,""]
[0,null,null,null,null,null,null,null,null,null,null,"","",null,null,null,0,""]
[0,null,null,null,null,null,null,null,null,null,null,"","",null,null,null,0,""]
[0,null,null,null,null,null,null,null,null,null,null,"","",null,null,null,0,""]
[0,null,null,null,null,null,null,null,null,null,null,"","",null,null,null,0,""]
[0,null,null,null,null,null,null,null,null,null,null,"","",null,null,null,0,""]
[0,null,null,null,null,null,null,null,null,null,null,"","",null,null,null,0,""]
[0,null,null,null,null,null,null,null,null,null,null,"","",null,null,null,0,""]
[0,null,null,null,null,null,null,null,null,null,null,"","",null,null,null,0,""]
[0,null,null,null,null,null,null,null,null,null,null,"","",null,null,null,0,""]
[0,null,null,null,null,null,null,null,null,null,null,"","",null,null,null,0,""]
[0,null,null,null,null,null,null,null,null,null,null,"","",null,null,null,0,""]
[0,null,null,null,null,null,null,null,null,null,null,"","",null,null,null,0,""]
[0,null,null,null,null,null,null,null,null,null,null,"","",null,null,null,0,""]
[0,null,null,null,null,null,null,null,null,null,null,{"$f":"IFERROR(IF(I78=\"\",\"\",IF(K78=\"\",TODAY()-B78,K78-B78)),\"\")","v":""},{"$f":"IFERROR(IF(I78=\"\",\"\",IF(AND(K78=\"\",I78>=TODAY()),\"EM ANDAMENTO\",IF(AND(K78=\"\",I78<TODAY()),\"ENTREGA ATRASADA\",IF(AND(K78<>\"\",K78-I78<0),\"ENTREGOU NO PRAZO\",\"ENTREGOU ATRASADO\")))),\"\")","v":""},null,null,null,0,{"$f":"IF(B78=\"\",\"\",MONTH(B78))","v":""}]
[{"$f":"C79","v":0},null,null,null,null,null,null,null,null,null,null,"","",null,null,null,0,""]
[0,null,null,null,null,null,null,null,null,null,null,"","",null,null,null,0,""]
[0,null,null,null,null,null,null,null,null,null,null,"","",null,null,null,0,""]
[0,null,null,null,null,null,null,null,null,null,null,"","",null,null,null,0,""]
[0,null,null,null,null,null,null,null,null,null,null,"","",null,null,null,0,""]
[0,null,null,null,null,null,null,null,null,null,null,"","",null,null,null,0,""]
[0,null,null,null,null,null,null,null,null,null,null,"","",null,null,null,0,""]
[0,null,null,null,null,null,null,null,null,null,null,"","",null,null,null,0,""]
[0,null,null,null,null,null,null,null,null,null,null,"","",null,null,null,0,""]
[0,null,null,null,null,null,null,null,null,null,null,"","",null,null,null,0,""]
[0,null,null,null,null,null,null,null,null,null,null,"","",null,null,null,0,""]
[0,null,null,null,null,null,null,null,null,null,null,"","",null,null,null,0,""]
[0,null,null,null,null,null,null,null,null,null,null,"","",null,null,null,0,""]
[0,null,null,null,null,null,null,null,null,null,null,"","",null,null,null,0,""]
[0,null,null,null,null,null,null,null,null,null,null,"","",null,null,null,0,""]
[0,null,null,null,null,null,null,null,null,null,null,"","",null,null,null,0,""]
[0,null,null,null,null,null,null,null,null,null,null,"","",null,null,null,0,""]
[0,null,null,null,null,null,null,null,null,null,null,"","",null,null,null,0,""]
[0,null,null,null,null,null,null,null,null,null,null,"","",null,null,null,0,""]
[0,null,null,null,null,null,null,null,null,null,null,"","",null,null,null,0,""]
[0,null,null,null,null,null,null,null,null,null,null,"","",null,null,null,0,""]
[0,null,null,null,null,null,null,null,null,null,null,"","",null,null,null,0,""]
[0,null,null,null,null,null,null,null,null,null,null,"","",null,null,null,0,""]
[0,null,null,null,null,null,null,null,null,null,null,"","",null,null,null,0,""]
[0,null,null,null,null,null,null,null,null,null,null,"","",null,null,null,0,""]
[0,null,null,null,null,null,null,null,null,null,null,"","",null,null,null,0,""]
[0,null,null,null,null,null,null,null,null,null,null,"","",null,null,null,0,""]
[0,null,null,null,null,null,null,null,null,null,null,"","",null,null,null,0,""]
[0,null,null,null,null,null,null,null,null,null,null,"","",null,null,null,0,""]
[0,null,null,null,null,null,null,null,null,null,null,"","",null,null,null,{"$f":"SUM(N108:P108)","v":0},""]
[0,null,null,null,null,null,null,null,null,null,null,"","",null,null,null,0,""]
[0,null,null,null,null,null,null,null,null,null,null,"","",null,null,null,0,""]
[0,null,null,null,null,null,null,null,null,null,null,"","",null,null,null,0,""]
[0,null,null,null,null,null,null,null,null,null,null,"","",null,null,null,0,""]
[0,null,null,null,null,null,null,null,null,null,null,"","",null,null,null,0,""]
[0,null,null,null,null,null,null,null,null,null,null,"","",null,null,null,0,""]
[0,null,null,null,null,null,null,null,null,null,null,"","",null,null,null,0,""]
[0,null,null,null,null,null,null,null,null,null,null,"","",null,null,null,0,""]
[0,null,null,null,null,null,null,null,null,null,null,"","",null,null,null,0,""]
[0,null,null,null,null,null,null,null,null,null,null,"","",null,null,null,0,""]
[0,null,null,null,null,null,null,null,null,null,null,"","",null,null,null,0,""]
[0,null,null,null,null,null,null,null,null,null,null,"","",null,null,null,0,""]
[0,null,null,null,null,null,null,null,null,null,null,"","",null,null,null,0,""]
[0,null,null,null,null,null,null,null,null,null,null,"","",null,null,null,0,""]
[0,null,null,null,null,null,null,null,null,null,null,"","",null,null,null,0,""]
[0,null,null,null,null,null,null,null,null,null,null,"","",null,null,null,0,""]
[0,null,null,null,null,null,null,null,null,null,null,"","",null,null,null,0,""]
[0,null,null,null,null,null,null,null,null,null,null,"","",null,null,null,0,""]
[0,null,null,null,null,null,null,null,null,null,null,"","",null,null,null,0,""]
[0,null,null,null,null,null,null,null,null,null,null,"","",null,null,null,0,""]
[0,null,null,null,null,null,null,null,null,null,null,"","",null,null,null,0,""]
[0,null,null,null,null,null,null,null,null,null,null,"","",null,null,null,0,""]
[0,null,null,null,null,null,null,null,null,null,null,"","",null,null,null,0,""]
[0,null,null,null,null,null,null,null,null,null,null,"","",null,null,null,0,""]
[0,null,null,null,null,null,null,null,null,null,null,"","",null,null,null,0,""]
[0,null,null,null,null,null,null,null,null,null,null,"","",null,null,null,0,""]
[0,null,null,null,null,null,null,null,null,null,null,"","",null,null,null,0,""]
[0,null,null,null,null,null,null,null,null,null,null,"","",null,null,null,0,""]
[0,null,null,null,null,null,null,null,null,null,null,"","",null,null,null,0,""]
[0,null,null,null,null,null,null,null,null,null,null,"","",null,null,null,0,""]
[0,null,null,null,null,null,null,null,null,null,null,"","",null,null,null,0,""]
[0,null,null,null,null,null,null,null,null,null,null,"","",null,null,null,0,""]
[0,null,null,null,null,null,null,null,null,null,null,"","",null,null,null,0,""]
[0,null,null,null,null,null,null,null,null,null,null,{"$f":"IFERROR(IF(I142=\"\",\"\",IF(K142=\"\",TODAY()-B142,K142-B142)),\"\")","v":""},{"$f":"IFERROR(IF(I142=\"\",\"\",IF(AND(K142=\"\",I142>=TODAY()),\"EM ANDAMENTO\",IF(AND(K142=\"\",I142<TODAY()),\"ENTREGA ATRASADA\",IF(AND(K142<>\"\",K142-I142<0),\"ENTREGOU NO PRAZO\",\"ENTREGOU ATRASADO\")))),\"\")","v":""},null,null,null,0,{"$f":"IF(B142=\"\",\"\",MONTH(B142))","v":""}]
[{"$f":"C143","v":0},null,null,null,null,null,null,null,null,null,null,"","",null,null,null,0,""]
[0,null,null,null,null,null,null,null,null,null,null,"","",null,null,null,0,""]
[0,null,null,null,null,null,null,null,null,null,null,"","",null,null,null,0,""]
[0,null,null,null,null,null,null,null,null,null,null,"","",null,null,null,0,""]
[0,null,null,null,null,null,null,null,null,null,null,"","",null,null,null,0,""]
[0,null,null,null,null,null,null,null,null,null,null,"","",null,null,null,0,""]
[0,null,null,null,null,null,null,null,null,null,null,"","",null,null,null,0,""]
[0,null,null,null,null,null,null,null,null,null,null,"","",null,null,null,0,""]
[0,null,null,null,null,null,null,null,null,null,null,"","",null,null,null,0,""]
[0,null,null,null,null,null,null,null,null,null,null,"","",null,null,null,0,""]
[0,null,null,null,null,null,null,null,null,null,null,"","",null,null,null,0,""]
[0,null,null,null,null,null,null,null,null,null,null,"","",null,null,null,0,""]
[0,null,null,null,null,null,null,null,null,null,null,"","",null,null,null,0,""]
[0,null,null,null,null,null,null,null,null,null,null,"","",null,null,null,0,""]
[0,null,null,null,null,null,null,null,null,null,null,"","",null,null,null,0,""]
[0,null,null,null,null,null,null,null,null,null,null,"","",null,null,null,0,""]
[0,null,null,null,null,null,null,null,null,null,null,"","",null,null,null,0,""]
[0,null,null,null,null,null,null,null,null,null,null,"","",null,null,null,0,""]
[0,null,null,null,null,null,null,null,null,null,null,"","",null,null,null,0,""]
[0,null,null,null,null,null,null,null,null,null,null,"","",null,null,null,0,""]
[0,null,null,null,null,null,null,null,null,null,null,"","",null,null,null,0,""]
[0,null,null,null,null,null,null,null,null,null,null,"","",null,null,null,0,""]
[0,null,null,null,null,null,null,null,null,null,null,"","",null,null,null,0,""]
[0,null,null,null,null,null,null,null,null,null,null,"","",null,null,null,0,""]
[0,null,null,null,null,null,null,null,null,null,null,"","",null,null,null,0,""]
[0,null,null,null,null,null,null,null,null,null,null,"","",null,null,null,0,""]
[0,null,null,null,null,null,null,null,null,null,null,"","",null,null,null,0,""]
[0,null,null,null,null,null,null,null,null,null,null,"","",null,null,null,0,""]
[0,null,null,null,null,null,null,null,null,null,null,"","",null,null,null,0,""]
[0,null,null,null,null,null,null,null,null,null,null,"","",null,null,null,{"$f":"SUM(N172:P172)","v":0},""]
[0,null,null,null,null,null,null,null,null,null,null,"","",null,null,null,0,""]
[0,null,null,null,null,null,null,null,null,null,null,"","",null,null,null,0,""]
[0,null,null,null,null,null,null,null,null,null,null,"","",null,null,null,0,""]
[0,null,null,null,null,null,null,null,null,null,null,"","",null,null,null,0,""]
[0,null,null,null,null,null,null,null,null,null,null,"","",null,null,null,0,""]
[0,null,null,null,null,null,null,null,null,null,null,"","",null,null,null,0,""]
[0,null,null,null,null,null,null,null,null,null,null,"","",null,null,null,0,""]
[0,null,null,null,null,null,null,null,null,null,null,"","",null,null,null,0,""]
[0,null,null,null,null,null,null,null,null,null,null,"","",null,null,null,0,""]
[0,null,null,null,null,null,null,null,null,null,null,"","",null,null,null,0,""]
[0,null,null,null,null,null,null,null,null,null,null,"","",null,null,null,0,""]
[0,null,null,null,null,null,null,null,null,null,null,"","",null,null,null,0,""]
[0,null,null,null,null,null,null,null,null,null,null,"","",null,null,null,0,""]
[0,null,null,null,null,null,null,null,null,null,null,"","",null,null,null,0,""]
[0,null,null,null,null,null,null,null,null,null,null,"","",null,null,null,0,""]
[0,null,null,null,null,null,null,null,null,null,null,"","",null,null,null,0,""]
[0,null,null,null,null,null,null,null,null,null,null,"","",null,null,null,0,""]
[0,null,null,null,null,null,null,null,null,null,null,"","",null,null,null,0,""]
[0,null,null,null,null,null,null,null,null,null,null,"","",null,null,null,0,""]
[0,null,null,null,null,null,null,null,null,null,null,"","",null,null,null,0,""]
[0,null,null,null,null,null,null,null,null,null,null,"","",null,null,null,0,""]
[0,null,null,null,null,null,null,null,null,null,null,"","",null,null,null,0,""]
[0,null,null,null,null,null,null,null,null,null,null,"","",null,null,null,0,""]
[0,null,null,null,null,null,null,null,null,null,null,"","",null,null,null,0,""]
[0,null,null,null,null,null,null,null,null,null,null,"","",null,null,null,0,""]
[0,null,null,null,null,null,null,null,null,null,null,"","",null,null,null,0,""]
[0,null,null,null,null,null,null,null,null,null,null,"","",null,null,null,0,""]
[0,null,null,null,null,null,null,null,null,null,null,"","",null,null,null,0,""]
[0,null,null,null,null,null,null,null,null,null,null,"","",null,null,null,0,""]
[0,null,null,null,null,null,null,null,null,null,null,"","",null,null,null,0,""]
[0,null,null,null,null,null,null,null,null,null,null,"","",null,null,null,0,""]
[0,null,null,null,null,null,null,null,null,null,null,"","",null,null,null,0,""]
[0,null,null,null,null,null,null,null,null,null,null,"","",null,null,null,0,""]
[0,null,null,null,null,null,null,null,null,null,null,{"$f":"IFERROR(IF(I206=\"\",\"\",IF(K206=\"\",TODAY()-B206,K206-B206)),\"\")","v":""},{"$f":"IFERROR(IF(I206=\"\",\"\",IF(AND(K206=\"\",I206>=TODAY()),\"EM ANDAMENTO\",IF(AND(K206=\"\",I206<TODAY()),\"ENTREGA ATRASADA\",IF(AND(K206<>\"\",K206-I206<0),\"ENTREGOU NO PRAZO\",\"ENTREGOU ATRASADO\")))),\"\")","v":""},null,null,null,0,{"$f":"IF(B206=\"\",\"\",MONTH(B206))","v":""}]
[{"$f":"C207","v":0},null,null,null,null,null,null,null,null,null,null,"","",null,null,null,0,""]
[0,null,null,null,null,null,null,null,null,null,null,"","",null,null,null,0,""]
[0,null,null,null,null,null,null,null,null,null,null,"","",null,null,null,0,""]
[0,null,null,null,null,null,null,null,null,null,null,"","",null,null,null,0,""]
[0,null,null,null,null,null,null,null,null,null,null,"","",null,null,null,0,""]
[0,null,null,null,null,null,null,null,null,null,null,"","",null,null,null,0,""]
[0,null,null,null,null,null,null,null,null,null,null,"","",null,null,null,0,""]
[0,null,null,null,null,null,null,null,null,null,null,"","",null,null,null,0,""]
[0,null,null,null,null,null,null,null,null,null,null,"","",null,null,null,0,""]
[0,null,null,null,null,null,null,null,null,null,null,"","",null,null,null,0,""]
[0,null,null,null,null,null,null,null,null,null,null,"","",null,null,null,0,""]
[0,null,null,null,null,null,null,null,null,null,null,"","",null,null,null,0,""]
[0,null,null,null,null,null,null,null,null,null,null,"","",null,null,null,0,""]
[0,null,null,null,null,null,null,null,null,null,null,"","",null,null,null,0,""]
[0,null,null,null,null,null,null,null,null,null,null,"","",null,null,null,0,""]
[0,null,null,null,null,null,null,null,null,null,null,"","",null,null,null,0,""]
[0,null,null,null,null,null,null,null,null,null,null,"","",null,null,null,0,""]
[0,null,null,null,null,null,null,null,null,null,null,"","",null,null,null,0,""]
[0,null,null,null,null,null,null,null,null,null,null,"","",null,null,null,0,""]
[0,null,null,null,null,null,null,null,null,null,null,"","",null,null,null,0,""]
[0,null,null,null,null,null,null,null,null,null,null,"","",null,null,null,0,""]
[0,null,null,null,null,null,null,null,null,null,null,"","",null,null,null,0,""]
[0,null,null,null,null,null,null,null,null,null,null,"","",null,null,null,0,""]
[0,null,null,null,null,null,null,null,null,null,null,"","",null,null,null,0,""]
[0,null,null,null,null,null,null,null,null,null,null,"","",null,null,null,0,""]
[0,null,null,null,null,null,null,null,null,null,null,"","",null,null,null,0,""]
[0,null,null,null,null,null,null,null,null,null,null,"","",null,null,null,0,""]
[0,null,null,null,null,null,null,null,null,null,null,"","",null,null,null,0,""]
[0,null,null,null,null,null,null,null,null,null,null,"","",null,null,null,0,""]
[0,null,null,null,null,null,null,null,null,null,null,"","",null,null,null,{"$f":"SUM(N236:P236)","v":0},""]
[0,null,null,null,null,null,null,null,null,null,null,"","",null,null,null,0,""]
[0,null,null,null,null,null,null,null,null,null,null,"","",null,null,null,0,""]
[0,null,null,null,null,null,null,null,null,null,null,"","",null,null,null,0,""]
[0,null,null,null,null,null,null,null,null,null,null,"","",null,null,null,0,""]
[0,null,null,null,null,null,null,null,null,null,null,"","",null,null,null,0,""]
[0,null,null,null,null,null,null,null,null,null,null,"","",null,null,null,0,""]
[0,null,null,null,null,null,null,null,null,null,null,"","",null,null,null,0,""]
[0,null,null,null,null,null,null,null,null,null,null,"","",null,null,null,0,""]
[0,null,null,null,null,null,null,null,null,null,null,"","",null,null,null,0,""]
[0,null,null,null,null,null,null,null,null,null,null,"","",null,null,null,0,""]
[0,null,null,null,null,null,null,null,null,null,null,"","",null,null,null,0,""]
[0,null,null,null,null,null,null,null,null,null,null,"","",null,null,null,0,""]
[0,null,null,null,null,null,null,null,null,null,null,"","",null,null,null,0,""]
[0,null,null,null,null,null,null,null,null,null,null,"","",null,null,null,0,""]
[0,null,null,null,null,null,null,null,null,null,null,"","",null,null,null,0,""]
[0,null,null,null,null,null,null,null,null,null,null,"","",null,null,null,0,""]
[0,null,null,null,null,null,null,null,null,null,null,"","",null,null,null,0,""]
[0,null,null,null,null,null,null,null,null,null,null,"","",null,null,null,0,""]
[0,null,null,null,null,null,null,null,null,null,null,"","",null,null,null,0,""]
[0,null,null,null,null,null,null,null,null,null,null,"","",null,null,null,0,""]
[0,null,null,null,null,null,null,null,null,null,null,"","",null,null,null,0,""]
[0,null,null,null,null,null,null,null,null,null,null,"","",null,null,null,0,""]
[0,null,null,null,null,null,null,null,null,null,null,"","",null,null,null,0,""]
[0,null,null,null,null,null,null,null,null,null,null,"","",null,null,null,0,""]
[0,null,null,null,null,null,null,null,null,null,null,"","",null,null,null,0,""]
[0,null,null,null,null,null,null,null,null,null,null,"","",null,null,null,0,""]
[0,null,null,null,null,null,null,null,null,null,null,"","",null,null,null,0,""]
[0,null,null,null,null,null,null,null,null,null,null,"","",null,null,null,0,""]
[0,null,null,null,null,null,null,null,null,null,null,"","",null,null,null,0,""]
[0,null,null,null,null,null,null,null,null,null,null,"","",null,null,null,0,""]
[0,null,null,null,null,null,null,null,null,null,null,"","",null,null,null,0,""]
[0,null,null,null,null,null,null,null,null,null,null,"","",null,null,null,0,""]
[0,null,null,null,null,null,null,null,null,null,null,"","",null,null,null,0,""]
[0,null,null,null,null,null,null,null,null,null,null,{"$f":"IFERROR(IF(I270=\"\",\"\",IF(K270=\"\",TODAY()-B270,K270-B270)),\"\")","v":""},{"$f":"IFERROR(IF(I270=\"\",\"\",IF(AND(K270=\"\",I270>=TODAY()),\"EM ANDAMENTO\",IF(AND(K270=\"\",I270<TODAY()),\"ENTREGA ATRASADA\",IF(AND(K270<>\"\",K270-I270<0),\"ENTREGOU NO PRAZO\",\"ENTREGOU ATRASADO\")))),\"\")","v":""},null,null,null,0,{"$f":"IF(B270=\"\",\"\",MONTH(B270))","v":""}]
[{"$f":"C271","v":0},null,null,null,null,null,null,null,null,null,null,"","",null,null,null,0,""]
[0,null,null,null,null,null,null,null,null,null,null,"","",null,null,null,0,""]
[0,null,null,null,null,null,null,null,null,null,null,"","",null,null,null,0,""]
[0,null,null,null,null,null,null,null,null,null,null,"","",null,null,null,0,""]
[0,null,null,null,null,null,null,null,null,null,null,"","",null,null,null,0,""]
[0,null,null,null,null,null,null,null,null,null,null,"","",null,null,null,0,""]
[0,null,null,null,null,null,null,null,null,null,null,"","",null,null,null,0,""]
[0,null,null,null,null,null,null,null,null,null,null,"","",null,null,null,0,""]
[0,null,null,null,null,null,null,null,null,null,null,"","",null,null,null,0,""]
[0,null,null,null,null,null,null,null,null,null,null,"","",null,null,null,0,""]
[0,null,null,null,null,null,null,null,null,null,null,"","",null,null,null,0,""]
[0,null,null,null,null,null,null,null,null,null,null,"","",null,null,null,0,""]
[0,null,null,null,null,null,null,null,null,null,null,"","",null,null,null,0,""]
[0,null,null,null,null,null,null,null,null,null,null,"","",null,null,null,0,""]
[0,null,null,null,null,null,null,null,null,null,null,"","",null,null,null,0,""]
[0,null,null,null,null,null,null,null,null,null,null,"","",null,null,null,0,""]
[0,null,null,null,null,null,null,null,null,null,null,"","",null,null,null,0,""]
[0,null,null,null,null,null,null,null,null,null,null,"","",null,null,null,0,""]
[0,null,null,null,null,null,null,null,null,null,null,"","",null,null,null,0,""]
[0,null,null,null,null,null,null,null,null,null,null,"","",null,null,null,0,""]
[0,null,null,null,null,null,null,null,null,null,null,"","",null,null,null,0,""]
[0,null,null,null,null,null,null,null,null,null,null,"","",null,null,null,0,""]
[0,null,null,null,null,null,null,null,null,null,null,"","",null,null,null,0,""]
[0,null,null,null,null,null,null,null,null,null,null,"","",null,null,null,0,""]
[0,null,null,null,null,null,null,null,null,null,null,"","",null,null,null,0,""]
[0,null,null,null,null,null,null,null,null,null,null,"","",null,null,null,0,""]
[0,null,null,null,null,null,null,null,null,null,null,"","",null,null,null,0,""]
[0,null,null,null,null,null,null,null,null,null,null,"","",null,null,null,0,""]
[0,null,null,null,null,null,null,null,null,null,null,"","",null,null,null,0,""]
[0,null,null,null,null,null,null,null,null,null,null,"","",null,null,null,{"$f":"SUM(N300:P300)","v":0},""]
[0,null,null,null,null,null,null,null,null,null,null,"","",null,null,null,0,""]
[0,null,null,null,null,null,null,null,null,null,null,"","",null,null,null,0,""]
[0,null,null,null,null,null,null,null,null,null,null,"","",null,null,null,0,""]
[0,null,null,null,null,null,null,null,null,null,null,"","",null,null,null,0,""]
[0,null,null,null,null,null,null,null,null,null,null,"","",null,null,null,0,""]
[0,null,null,null,null,null,null,null,null,null,null,"","",null,null,null,0,""]
[0,null,null,null,null,null,null,null,null,null,null,"","",null,null,null,0,""]
[0,null,null,null,null,null,null,null,null,null,null,"","",null,null,null,0,""]
[0,null,null,null,null,null,null,null,null,null,null,"","",null,null,null,0,""]
[0,null,null,null,null,null,null,null,null,null,null,"","",null,null,null,0,""]
[0,null,null,null,null,null,null,null,null,null,null,"","",null,null,null,0,""]
[0,null,null,null,null,null,null,null,null,null,null,"","",null,null,null,0,""]
[0,null,null,null,null,null,null,null,null,null,null,"","",null,null,null,0,""]
[0,null,null,null,null,null,null,null,null,null,null,"","",null,null,null,0,""]
[0,null,null,null,null,null,null,null,null,null,null,"","",null,null,null,0,""]
[0,null,null,null,null,null,null,null,null,null,null,"","",null,null,null,0,""]
[0,null,null,null,null,null,null,null,null,null,null,"","",null,null,null,0,""]
[0,null,null,null,null,null,null,null,null,null,null,"","",null,null,null,0,""]
[0,null,null,null,null,null,null,null,null,null,null,"","",null,null,null,0,""]
[0,null,null,null,null,null,null,null,null,null,null,"","",null,null,null,0,""]
[0,null,null,null,null,null,null,null,null,null,null,"","",null,null,null,0,""]
[0,null,null,null,null,null,null,null,null,null,null,"","",null,null,null,0,""]
[0,null,null,null,null,null,null,null,null,null,null,"","",null,null,null,0,""]
[0,null,null,null,null,null,null,null,null,null,null,"","",null,null,null,0,""]
[0,null,null,null,null,null,null,null,null,null,null,"","",null,null,null,0,""]
[0,null,null,null,null,null,null,null,null,null,null,"","",null,null,null,0,""]
[0,null,null,null,null,null,null,null,null,null,null,"","",null,null,null,0,""]
[0,null,null,null,null,null,null,null,null,null,null,"","",null,null,null,0,""]
[0,null,null,null,null,null,null,null,null,null,null,"","",null,null,null,0,""]
[0,null,null,null,null,null,null,null,null,null,null,"","",null,null,null,0,""]
[0,null,null,null,null,null,null,null,null,null,null,"","",null,null,null,0,""]
[0,null,null,null,null,null,null,null,null,null,null,"","",null,null,null,0,""]
[0,null,null,null,null,null,null,null,null,null,null,"","",null,null,null,0,""]
[0,null,null,null,null,null,null,null,null,null,null,{"$f":"IFERROR(IF(I334=\"\",\"\",IF(K334=\"\",TODAY()-B334,K334-B334)),\"\")","v":""},{"$f":"IFERROR(IF(I334=\"\",\"\",IF(AND(K334=\"\",I334>=TODAY()),\"EM ANDAMENTO\",IF(AND(K334=\"\",I334<TODAY()),\"ENTREGA ATRASADA\",IF(AND(K334<>\"\",K334-I334<0),\"ENTREGOU NO PRAZO\",\"ENTREGOU ATRASADO\")))),\"\")","v":""},null,null,null,0,{"$f":"IF(B334=\"\",\"\",MONTH(B334))","v":""}]
[{"$f":"C335","v":0},null,null,null,null,null,null,null,null,null,null,"","",null,null,null,0,""]
[0,null,null,null,null,null,null,null,null,null,null,"","",null,null,null,0,""]
[0,null,null,null,null,null,null,null,null,null,null,"","",null,null,null,0,""]
[0,null,null,null,null,null,null,null,null,null,null,"","",null,null,null,0,""]
[0,null,null,null,null,null,null,null,null,null,null,"","",null,null,null,0,""]
[0,null,null,null,null,null,null,null,null,null,null,"","",null,null,null,0,""]
[0,null,null,null,null,null,null,null,null,null,null,"","",null,null,null,0,""]
[0,null,null,null,null,null,null,null,null,null,null,"","",null,null,null,0,""]
[0,null,null,null,null,null,null,null,null,null,null,"","",null,null,null,0,""]
[0,null,null,null,null,null,null,null,null,null,null,"","",null,null,null,0,""]
[0,null,null,null,null,null,null,null,null,null,null,"","",null,null,null,0,""]
[0,null,null,null,null,null,null,null,null,null,null,"","",null,null,null,0,""]
[0,null,null,null,null,null,null,null,null,null,null,"","",null,null,null,0,""]
[0,null,null,null,null,null,null,null,null,null,null,"","",null,null,null,0,""]
[0,null,null,null,null,null,null,null,null,null,null,"","",null,null,null,0,""]
[0,null,null,null,null,null,null,null,null,null,null,"","",null,null,null,0,""]
[0,null,null,null,null,null,null,null,null,null,null,"","",null,null,null,0,""]
[0,null,null,null,null,null,null,null,null,null,null,"","",null,null,null,0,""]
[0,null,null,null,null,null,null,null,null,null,null,"","",null,null,null,0,""]
[0,null,null,null,null,null,null,null,null,null,null,"","",null,null,null,0,""]
[0,null,null,null,null,null,null,null,null,null,null,"","",null,null,null,0,""]
[0,null,null,null,null,null,null,null,null,null,null,"","",null,null,null,0,""]
[0,null,null,null,null,null,null,null,null,null,null,"","",null,null,null,0,""]
[0,null,null,null,null,null,null,null,null,null,null,"","",null,null,null,0,""]
[0,null,null,null,null,null,null,null,null,null,null,"","",null,null,null,0,""]
[0,null,null,null,null,null,null,null,null,null,null,"","",null,null,null,0,""]
[0,null,null,null,null,null,null,null,null,null,null,"","",null,null,null,0,""]
[0,null,null,null,null,null,null,null,null,null,null,"","",null,null,null,0,""]
[0,null,null,null,null,null,null,null,null,null,null,"","",null,null,null,0,""]
[0,null,null,null,null,null,null,null,null,null,null,"","",null,null,null,{"$f":"SUM(N364:P364)","v":0},""]
[0,null,null,null,null,null,null,null,null,null,null,"","",null,null,null,0,""]
[0,null,null,null,null,null,null,null,null,null,null,"","",null,null,null,0,""]
[0,null,null,null,null,null,null,null,null,null,null,"","",null,null,null,0,""]
[0,null,null,null,null,null,null,null,null,null,null,"","",null,null,null,0,""]
[0,null,null,null,null,null,null,null,null,null,null,"","",null,null,null,0,""]
[0,null,null,null,null,null,null,null,null,null,null,"","",null,null,null,0,""]
[0,null,null,null,null,null,null,null,null,null,null,"","",null,null,null,0,""]
[0,null,null,null,null,null,null,null,null,null,null,"","",null,null,null,0,""]
[0,null,null,null,null,null,null,null,null,null,null,"","",null,null,null,0,""]
[0,null,null,null,null,null,null,null,null,null,null,"","",null,null,null,0,""]
[0,null,null,null,null,null,null,null,null,null,null,"","",null,null,null,0,""]
[0,null,null,null,null,null,null,null,null,null,null,"","",null,null,null,0,""]
[0,null,null,null,null,null,null,null,null,null,null,"","",null,null,null,0,""]
[0,null,null,null,null,null,null,null,null,null,null,"","",null,null,null,0,""]
[0,null,null,null,null,null,null,null,null,null,null,"","",null,null,null,0,""]
[0,null,null,null,null,null,null,null,null,null,null,"","",null,null,null,0,""]
[0,null,null,null,null,null,null,null,null,null,null,"","",null,null,null,0,""]
[0,null,null,null,null,null,null,null,null,null,null,"","",null,null,null,0,""]
[0,null,null,null,null,null,null,null,null,null,null,"","",null,null,null,0,""]
[0,null,null,null,null,null,null,null,null,null,null,"","",null,null,null,0,""]
[0,null,null,null,null,null,null,null,null,null,null,"","",null,null,null,0,""]
[0,null,null,null,null,null,null,null,null,null,null,"","",null,null,null,0,""]
[0,null,null,null,null,null,null,null,null,null,null,"","",null,null,null,0,""]
[0,null,null,null,null,null,null,null,null,null,null,"","",null,null,null,0,""]
[0,null,null,null,null,null,null,null,null,null,null,"","",null,null,null,0,""]
[0,null,null,null,null,null,null,null,null,null,null,"","",null,null,null,0,""]
[0,null,null,null,null,null,null,null,null,null,null,"","",null,null,null,0,""]
[0,null,null,null,null,null,null,null,null,null,null,"","",null,null,null,0,""]
[0,null,null,null,null,null,null,null,null,null,null,"","",null,null,null,0,""]
[0,null,null,null,null,null,null,null,null,null,null,"","",null,null,null,0,""]
[0,null,null,null,null,null,null,null,null,null,null,"","",null,null,null,0,""]
[0,null,null,null,null,null,null,null,null,null,null,"","",null,null,null,0,""]
[0,null,null,null,null,null,null,null,null,null,null,"","",null,null,null,0,""]
[0,null,null,null,null,null,null,null,null,null,null,{"$f":"IFERROR(IF(I398=\"\",\"\",IF(K398=\"\",TODAY()-B398,K398-B398)),\"\")","v":""},{"$f":"IFERROR(IF(I398=\"\",\"\",IF(AND(K398=\"\",I398>=TODAY()),\"EM ANDAMENTO\",IF(AND(K398=\"\",I398<TODAY()),\"ENTREGA ATRASADA\",IF(AND(K398<>\"\",K398-I398<0),\"ENTREGOU NO PRAZO\",\"ENTREGOU ATRASADO\")))),\"\")","v":""},null,null,null,0,{"$f":"IF(B398=\"\",\"\",MONTH(B398))","v":""}]
[{"$f":"C399","v":0},null,null,null,null,null,null,null,null,null,null,"","",null,null,null,0,""]
[0,null,null,null,null,null,null,null,null,null,null,"","",null,null,null,0,""]
[0,null,null,null,null,null,null,null,null,null,null,"","",null,null,null,0,""]
[0,null,null,null,null,null,null,null,null,null,null,"","",null,null,null,0,""]
[0,null,null,null,null,null,null,null,null,null,null,"","",null,null,null,0,""]
[0,null,null,null,null,null,null,null,null,null,null,"","",null,null,null,0,""]
[0,null,null,null,null,null,null,null,null,null,null,"","",null,null,null,0,""]
[0,null,null,null,null,null,null,null,null,null,null,"","",null,null,null,0,""]
[0,null,null,null,null,null,null,null,null,null,null,"","",null,null,null,0,""]
[0,null,null,null,null,null,null,null,null,null,null,"","",null,null,null,0,""]
[0,null,null,null,null,null,null,null,null,null,null,"","",null,null,null,0,""]
[0,null,null,null,null,null,null,null,null,null,null,"","",null,null,null,0,""]
[0,null,null,null,null,null,null,null,null,null,null,"","",null,null,null,0,""]
[0,null,null,null,null,null,null,null,null,null,null,"","",null,null,null,0,""]
[0,null,null,null,null,null,null,null,null,null,null,"","",null,null,null,0,""]
[0,null,null,null,null,null,null,null,null,null,null,"","",null,null,null,0,""]
[0,null,null,null,null,null,null,null,null,null,null,"","",null,null,null,0,""]
[0,null,null,null,null,null,null,null,null,null,null,"","",null,null,null,0,""]
[0,null,null,null,null,null,null,null,null,null,null,"","",null,null,null,0,""]
[0,null,null,null,null,null,null,null,null,null,null,"","",null,null,null,0,""]
[0,null,null,null,null,null,null,null,null,null,null,"","",null,null,null,0,""]
[0,null,null,null,null,null,null,null,null,null,null,"","",null,null,null,0,""]
[0,null,null,null,null,null,null,null,null,null,null,"","",null,null,null,0,""]
[0,null,null,null,null,null,null,null,null,null,null,"","",null,null,null,0,""]
[0,null,null,null,null,null,null,null,null,null,null,"","",null,null,null,0,""]
[0,null,null,null,null,null,null,null,null,null,null,"","",null,null,null,0,""]
[0,null,null,null,null,null,null,null,null,null,null,"","",null,null,null,0,""]
[0,null,null,null,null,null,null,null,null,null,null,"","",null,null,null,0,""]
[0,null,null,null,null,null,null,null,null,null,null,"","",null,null,null,0,""]
[0,null,null,null,null,null,null,null,null,null,null,"","",null,null,null,{"$f":"SUM(N428:P428)","v":0},""]
[0,null,null,null,null,null,null,null,null,null,null,"","",null,null,null,0,""]
[0,null,null,null,null,null,null,null,null,null,null,"","",null,null,null,0,""]
[0,null,null,null,null,null,null,null,null,null,null,"","",null,null,null,0,""]
[0,null,null,null,null,null,null,null,null,null,null,"","",null,null,null,0,""]
[0,null,null,null,null,null,null,null,null,null,null,"","",null,null,null,0,""]
[0,null,null,null,null,null,null,null,null,null,null,"","",null,null,null,0,""]
[0,null,null,null,null,null,null,null,null,null,null,"","",null,null,null,0,""]
[0,null,null,null,null,null,null,null,null,null,null,"","",null,null,null,0,""]
[0,null,null,null,null,null,null,null,null,null,null,"","",null,null,null,0,""]
[0,null,null,null,null,null,null,null,null,null,null,"","",null,null,null,0,""]
[0,null,null,null,null,null,null,null,null,null,null,"","",null,null,null,0,""]
[0,null,null,null,null,null,null,null,null,null,null,"","",null,null,null,0,""]
[0,null,null,null,null,null,null,null,null,null,null,"","",null,null,null,0,""]
[0,null,null,null,null,null,null,null,null,null,null,"","",null,null,null,0,""]
[0,null,null,null,null,null,null,null,null,null,null,"","",null,null,null,0,""]
[0,null,null,null,null,null,null,null,null,null,null,"","",null,null,null,0,""]
[0,null,null,null,null,null,null,null,null,null,null,"","",null,null,null,0,""]
[0,null,null,null,null,null,null,null,null,null,null,"","",null,null,null,0,""]
[0,null,null,null,null,null,null,null,null,null,null,"","",null,null,null,0,""]
[0,null,null,null,null,null,null,null,null,null,null,"","",null,null,null,0,""]
[0,null,null,null,null,null,null,null,null,null,null,"","",null,null,null,0,""]
[0,null,null,null,null,null,null,null,null,null,null,"","",null,null,null,0,""]
[0,null,null,null,null,null,null,null,null,null,null,"","",null,null,null,0,""]
[0,null,null,null,null,null,null,null,null,null,null,"","",null,null,null,0,""]
[0,null,null,null,null,null,null,null,null,null,null,"","",null,null,null,0,""]
[0,null,null,null,null,null,null,null,null,null,null,"","",null,null,null,0,""]
[0,null,null,null,null,null,null,null,null,null,null,"","",null,null,null,0,""]
[0,null,null,null,null,null,null,null,null,null,null,"","",null,null,null,0,""]
[0,null,null,null,null,null,null,null,null,null,null,"","",null,null,null,0,""]
[0,null,null,null,null,null,null,null,null,null,null,"","",null,null,null,0,""]
[0,null,null,null,null,null,null,null,null,null,null,"","",null,null,null,0,""]
[0,null,null,null,null,null,null,null,null,null,null,"","",null,null,null,0,""]
[0,null,null,null,null,null,null,null,null,null,null,"","",null,null,null,0,""]
[0,null,null,null,null,null,null,null,null,null,null,{"$f":"IFERROR(IF(I462=\"\",\"\",IF(K462=\"\",TODAY()-B462,K462-B462)),\"\")","v":""},{"$f":"IFERROR(IF(I462=\"\",\"\",IF(AND(K462=\"\",I462>=TODAY()),\"EM ANDAMENTO\",IF(AND(K462=\"\",I462<TODAY()),\"ENTREGA ATRASADA\",IF(AND(K462<>\"\",K462-I462<0),\"ENTREGOU NO PRAZO\",\"ENTREGOU ATRASADO\")))),\"\")","v":""},null,null,null,0,{"$f":"IF(B462=\"\",\"\",MONTH(B462))","v":""}]
[{"$f":"C463","v":0},null,null,null,null,null,null,null,null,null,null,"","",null,null,null,0,""]
[0,null,null,null,null,null,null,null,null,null,null,"","",null,null,null,0,""]
[0,null,null,null,null,null,null,null,null,null,null,"","",null,null,null,0,""]
[0,null,null,null,null,null,null,null,null,null,null,"","",null,null,null,0,""]
[0,null,null,null,null,null,null,null,null,null,null,"","",null,null,null,0,""]
[0,null,null,null,null,null,null,null,null,null,null,"","",null,null,null,0,""]
[0,null,null,null,null,null,null,null,null,null,null,"","",null,null,null,0,""]
[0,null,null,null,null,null,null,null,null,null,null,"","",null,null,null,0,""]
[0,null,null,null,null,null,null,null,null,null,null,"","",null,null,null,0,""]
[0,null,null,null,null,null,null,null,null,null,null,"","",null,null,null,0,""]
[0,null,null,null,null,null,null,null,null,null,null,"","",null,null,null,0,""]
[0,null,null,null,null,null,null,null,null,null,null,"","",null,null,null,0,""]
[0,null,null,null,null,null,null,null,null,null,null,"","",null,null,null,0,""]
[0,null,null,null,null,null,null,null,null,null,null,"","",null,null,null,0,""]
[0,null,null,null,null,null,null,null,null,null,null,"","",null,null,null,0,""]
[0,null,null,null,null,null,null,null,null,null,null,"","",null,null,null,0,""]
[0,null,null,null,null,null,null,null,null,null,null,"","",null,null,null,0,""]
[0,null,null,null,null,null,null,null,null,null,null,"","",null,null,null,0,""]
[0,null,null,null,null,null,null,null,null,null,null,"","",null,null,null,0,""]
[0,null,null,null,null,null,null,null,null,null,null,"","",null,null,null,0,""]
[0,null,null,null,null,null,null,null,null,null,null,"","",null,null,null,0,""]
[0,null,null,null,null,null,null,null,null,null,null,"","",null,null,null,0,""]
[0,null,null,null,null,null,null,null,null,null,null,"","",null,null,null,0,""]
[0,null,null,null,null,null,null,null,null,null,null,"","",null,null,null,0,""]
[0,null,null,null,null,null,null,null,null,null,null,"","",null,null,null,0,""]
[0,null,null,null,null,null,null,null,null,null,null,"","",null,null,null,0,""]
[0,null,null,null,null,null,null,null,null,null,null,"","",null,null,null,0,""]
[0,null,null,null,null,null,null,null,null,null,null,"","",null,null,null,0,""]
[0,null,null,null,null,null,null,null,null,null,null,"","",null,null,null,0,""]
[0,null,null,null,null,null,null,null,null,null,null,"","",null,null,null,{"$f":"SUM(N492:P492)","v":0},""]
[0,null,null,null,null,null,null,null,null,null,null,"","",null,null,null,0,""]
[0,null,null,null,null,null,null,null,null,null,null,"","",null,null,null,0,""]
[0,null,null,null,null,null,null,null,null,null,null,"","",null,null,null,0,""]
[0,null,null,null,null,null,null,null,null,null,null,"","",null,null,null,0,""]
[0,null,null,null,null,null,null,null,null,null,null,"","",null,null,null,0,""]
[0,null,null,null,null,null,null,null,null,null,null,"","",null,null,null,0,""]
[0,null,null,null,null,null,null,null,null,null,null,"","",null,null,null,0,""]
[0,null,null,null,null,null,null,null,null,null,null,"","",null,null,null,0,""]
[0,null,null,null,null,null,null,null,null,null,null,"","",null,null,null,0,""]
[0,null,null,null,null,null,null,null,null,null,null,"","",null,null,null,0,""]
[0,null,null,null,null,null,null,null,null,null,null,"","",null,null,null,0,""]
[0,null,null,null,null,null,null,null,null,null,null,"","",null,null,null,0,""]
[0,null,null,null,null,null,null,null,null,null,null,"","",null,null,null,0,""]
[0,null,null,null,null,null,null,null,null,null,null,"","",null,null,null,0,""]
[0,null,null,null,null,null,null,null,null,null,null,"","",null,null,null,0,""]
[0,null,null,null,null,null,null,null,null,null,null,"","",null,null,null,0,""]
[0,null,null,null,null,null,null,null,null,null,null,"","",null,null,null,0,""]
[0,null,null,null,null,null,null,null,null,null,null,"","",null,null,null,0,""]
[0,null,null,null,null,null,null,null,null,null,null,"","",null,null,null,0,""]
[0,null,null,null,null,null,null,null,null,null,null,"","",null,null,null,0,""]
[0,null,null,null,null,null,null,null,null,null,null,"","",null,null,null,0,""]
[0,null,null,null,null,null,null,null,null,null,null,"","",null,null,null,0,""]
[0,null,null,null,null,null,null,null,null,null,null,"","",null,null,null,0,""]
[0,null,null,null,null,null,null,null,null,null,null,"","",null,null,null,0,""]
[0,null,null,null,null,null,null,null,null,null,null,"","",null,null,null,0,""]
[0,null,null,null,null,null,null,null,null,null,null,"","",null,null,null,0,""]
[0,null,null,null,null,null,null,null,null,null,null,"","",null,null,null,0,""]
[0,null,null,null,null,null,null,null,null,null,null,"","",null,null,null,0,""]
[0,null,null,null,null,null,null,null,null,null,null,"","",null,null,null,0,""]
[0,null,null,null,null,null,null,null,null,null,null,"","",null,null,null,0,""]
[0,null,null,null,null,null,null,null,null,null,null,"","",null,null,null,0,""]
[0,null,null,null,null,null,null,null,null,null,null,"","",null,null,null,0,""]
[0,null,null,null,null,null,null,null,null,null,null,"","",null,null,null,0,""]
[0,null,null,null,null,null,null,null,null,null,null,{"$f":"IFERROR(IF(I526=\"\",\"\",IF(K526=\"\",TODAY()-B526,K526-B526)),\"\")","v":""},{"$f":"IFERROR(IF(I526=\"\",\"\",IF(AND(K526=\"\",I526>=TODAY()),\"EM ANDAMENTO\",IF(AND(K526=\"\",I526<TODAY()),\"ENTREGA ATRASADA\",IF(AND(K526<>\"\",K526-I526<0),\"ENTREGOU NO PRAZO\",\"ENTREGOU ATRASADO\")))),\"\")","v":""},null,null,null,0,{"$f":"IF(B526=\"\",\"\",MONTH(B526))","v":""}]
[{"$f":"C527","v":0},null,null,null,null,null,null,null,null,null,null,"","",null,null,null,0,""]
[0,null,null,null,null,null,null,null,null,null,null,"","",null,null,null,0,""]
[0,null,null,null,null,null,null,null,null,null,null,"","",null,null,null,0,""]
[0,null,null,null,null,null,null,null,null,null,null,"","",null,null,null,0,""]
[0,null,null,null,null,null,null,null,null,null,null,"","",null,null,null,0,""]
[0,null,null,null,null,null,null,null,null,null,null,"","",null,null,null,0,""]
[0,null,null,null,null,null,null,null,null,null,null,"","",null,null,null,0,""]
[0,null,null,null,null,null,null,null,null,null,null,"","",null,null,null,0,""]
[0,null,null,null,null,null,null,null,null,null,null,"","",null,null,null,0,""]
[0,null,null,null,null,null,null,null,null,null,null,"","",null,null,null,0,""]
[0,null,null,null,null,null,null,null,null,null,null,"","",null,null,null,0,""]
[0,null,null,null,null,null,null,null,null,null,null,"","",null,null,null,0,""]
[0,null,null,null,null,null,null,null,null,null,null,"","",null,null,null,0,""]
[0,null,null,null,null,null,null,null,null,null,null,"","",null,null,null,0,""]
[0,null,null,null,null,null,null,null,null,null,null,"","",null,null,null,0,""]
[0,null,null,null,null,null,null,null,null,null,null,"","",null,null,null,0,""]
[0,null,null,null,null,null,null,null,null,null,null,"","",null,null,null,0,""]
[0,null,null,null,null,null,null,null,null,null,null,"","",null,null,null,0,""]
[0,null,null,null,null,null,null,null,null,null,null,"","",null,null,null,0,""]
[0,null,null,null,null,null,null,null,null,null,null,"","",null,null,null,0,""]
[0,null,null,null,null,null,null,null,null,null,null,"","",null,null,null,0,""]
[0,null,null,null,null,null,null,null,null,null,null,"","",null,null,null,0,""]
[0,null,null,null,null,null,null,null,null,null,null,"","",null,null,null,0,""]
[0,null,null,null,null,null,null,null,null,null,null,"","",null,null,null,0,""]
[0,null,null,null,null,null,null,null,null,null,null,"","",null,null,null,0,""]
[0,null,null,null,null,null,null,null,null,null,null,"","",null,null,null,0,""]
[0,null,null,null,null,null,null,null,null,null,null,"","",null,null,null,0,""]
[0,null,null,null,null,null,null,null,null,null,null,"","",null,null,null,0,""]
[0,null,null,null,null,null,null,null,null,null,null,"","",null,null,null,0,""]
[0,null,null,null,null,null,null,null,null,null,null,"","",null,null,null,{"$f":"SUM(N556:P556)","v":0},""]
[0,null,null,null,null,null,null,null,null,null,null,"","",null,null,null,0,""]
[0,null,null,null,null,null,null,null,null,null,null,"","",null,null,null,0,""]
[0,null,null,null,null,null,null,null,null,null,null,"","",null,null,null,0,""]
[0,null,null,null,null,null,null,null,null,null,null,"","",null,null,null,0,""]
[0,null,null,null,null,null,null,null,null,null,null,"","",null,null,null,0,""]
[0,null,null,null,null,null,null,null,null,null,null,"","",null,null,null,0,""]
[0,null,null,null,null,null,null,null,null,null,null,"","",null,null,null,0,""]
[0,null,null,null,null,null,null,null,null,null,null,"","",null,null,null,0,""]
[0,null,null,null,null,null,null,null,null,null,null,"","",null,null,null,0,""]
[0,null,null,null,null,null,null,null,null,null,null,"","",null,null,null,0,""]
[0,null,null,null,null,null,null,null,null,null,null,"","",null,null,null,0,""]
[0,null,null,null,null,null,null,null,null,null,null,"","",null,null,null,0,""]
[0,null,null,null,null,null,null,null,null,null,null,"","",null,null,null,0,""]
[0,null,null,null,null,null,null,null,null,null,null,"","",null,null,null,0,""]
[0,null,null,null,null,null,null,null,null,null,null,"","",null,null,null,0,""]
[0,null,null,null,null,null,null,null,null,null,null,"","",null,null,null,0,""]
[0,null,null,null,null,null,null,null,null,null,null,"","",null,null,null,0,""]
[0,null,null,null,null,null,null,null,null,null,null,"","",null,null,null,0,""]
[0,null,null,null,null,null,null,null,null,null,null,"","",null,null,null,0,""]
[0,null,null,null,null,null,null,null,null,null,null,"","",null,null,null,0,""]
[0,null,null,null,null,null,null,null,null,null,null,"","",null,null,null,0,""]
[0,null,null,null,null,null,null,null,null,null,null,"","",null,null,null,0,""]
[0,null,null,null,null,null,null,null,null,null,null,"","",null,null,null,0,""]
[0,null,null,null,null,null,null,null,null,null,null,"","",null,null,null,0,""]
[0,null,null,null,null,null,null,null,null,null,null,"","",null,null,null,0,""]
[0,null,null,null,null,null,null,null,null,null,null,"","",null,null,null,0,""]
[0,null,null,null,null,null,null,null,null,null,null,"","",null,null,null,0,""]
[0,null,null,null,null,null,null,null,null,null,null,"","",null,null,null,0,""]
[0,null,null,null,null,null,null,null,null,null,null,"","",null,null,null,0,""]
[0,null,null,null,null,null,null,null,null,null,null,"","",null,null,null,0,""]
[0,null,null,null,null,null,null,null,null,null,null,"","",null,null,null,0,""]
[0,null,null,null,null,null,null,null,null,null,null,"","",null,null,null,0,""]
[0,null,null,null,null,null,null,null,null,null,null,"","",null,null,null,0,""]
[0,null,null,null,null,null,null,null,null,null,null,{"$f":"IFERROR(IF(I590=\"\",\"\",IF(K590=\"\",TODAY()-B590,K590-B590)),\"\")","v":""},{"$f":"IFERROR(IF(I590=\"\",\"\",IF(AND(K590=\"\",I590>=TODAY()),\"EM ANDAMENTO\",IF(AND(K590=\"\",I590<TODAY()),\"ENTREGA ATRASADA\",IF(AND(K590<>\"\",K590-I590<0),\"ENTREGOU NO PRAZO\",\"ENTREGOU ATRASADO\")))),\"\")","v":""},null,null,null,0,{"$f":"IF(B590=\"\",\"\",MONTH(B590))","v":""}]
[{"$f":"C591","v":0},null,null,null,null,null,null,null,null,null,null,"","",null,null,null,0,""]
[0,null,null,null,null,null,null,null,null,null,null,"","",null,null,null,0,""]
[0,null,null,null,null,null,null,null,null,null,null,"","",null,null,null,0,""]
[0,null,null,null,null,null,null,null,null,null,null,"","",null,null,null,0,""]
[0,null,null,null,null,null,null,null,null,null,null,"","",null,null,null,0,""]
[0,null,null,null,null,null,null,null,null,null,null,"","",null,null,null,0,""]
[0,null,null,null,null,null,null,null,null,null,null,"","",null,null,null,0,""]
[0,null,null,null,null,null,null,null,null,null,null,"","",null,null,null,0,""]
[0,null,null,null,null,null,null,null,null,null,null,"","",null,null,null,0,""]
[0,null,null,null,null,null,null,null,null,null,null,"","",null,null,null,0,""]
[0,null,null,null,null,null,null,null,null,null,null,"","",null,null,null,0,""]
[0,null,null,null,null,null,null,null,null,null,null,"","",null,null,null,0,""]
[0,null,null,null,null,null,null,null,null,null,null,"","",null,null,null,0,""]
[0,null,null,null,null,null,null,null,null,null,null,"","",null,null,null,0,""]
[0,null,null,null,null,null,null,null,null,null,null,"","",null,null,null,0,""]
[0,null,null,null,null,null,null,null,null,null,null,"","",null,null,null,0,""]
[0,null,null,null,null,null,null,null,null,null,null,"","",null,null,null,0,""]
[0,null,null,null,null,null,null,null,null,null,null,"","",null,null,null,0,""]
[0,null,null,null,null,null,null,null,null,null,null,"","",null,null,null,0,""]
[0,null,null,null,null,null,null,null,null,null,null,"","",null,null,null,0,""]
[0,null,null,null,null,null,null,null,null,null,null,"","",null,null,null,0,""]
[0,null,null,null,null,null,null,null,null,null,null,"","",null,null,null,0,""]
[0,null,null,null,null,null,null,null,null,null,null,"","",null,null,null,0,""]
[0,null,null,null,null,null,null,null,null,null,null,"","",null,null,null,0,""]
[0,null,null,null,null,null,null,null,null,null,null,"","",null,null,null,0,""]
[0,null,null,null,null,null,null,null,null,null,null,"","",null,null,null,0,""]
[0,null,null,null,null,null,null,null,null,null,null,"","",null,null,null,0,""]
[0,null,null,null,null,null,null,null,null,null,null,"","",null,null,null,0,""]
[0,null,null,null,null,null,null,null,null,null,null,"","",null,null,null,0,""]
[0,null,null,null,null,null,null,null,null,null,null,"","",null,null,null,{"$f":"SUM(N620:P620)","v":0},""]
[0,null,null,null,null,null,null,null,null,null,null,"","",null,null,null,0,""]
[0,null,null,null,null,null,null,null,null,null,null,"","",null,null,null,0,""]
[0,null,null,null,null,null,null,null,null,null,null,"","",null,null,null,0,""]
[0,null,null,null,null,null,null,null,null,null,null,"","",null,null,null,0,""]
[0,null,null,null,null,null,null,null,null,null,null,"","",null,null,null,0,""]
[0,null,null,null,null,null,null,null,null,null,null,"","",null,null,null,0,""]
[0,null,null,null,null,null,null,null,null,null,null,"","",null,null,null,0,""]
[0,null,null,null,null,null,null,null,null,null,null,"","",null,null,null,0,""]
[0,null,null,null,null,null,null,null,null,null,null,"","",null,null,null,0,""]
[0,null,null,null,null,null,null,null,null,null,null,"","",null,null,null,0,""]
[0,null,null,null,null,null,null,null,null,null,null,"","",null,null,null,0,""]
[0,null,null,null,null,null,null,null,null,null,null,"","",null,null,null,0,""]
[0,null,null,null,null,null,null,null,null,null,null,"","",null,null,null,0,""]
[0,null,null,null,null,null,null,null,null,null,null,"","",null,null,null,0,""]
[0,null,null,null,null,null,null,null,null,null,null,"","",null,null,null,0,""]
[0,null,null,null,null,null,null,null,null,null,null,"","",null,null,null,0,""]
[0,null,null,null,null,null,null,null,null,null,null,"","",null,null,null,0,""]
[0,null,null,null,null,null,null,null,null,null,null,"","",null,null,null,0,""]
[0,null,null,null,null,null,null,null,null,null,null,"","",null,null,null,0,""]
[0,null,null,null,null,null,null,null,null,null,null,"","",null,null,null,0,""]
[0,null,null,null,null,null,null,null,null,null,null,"","",null,null,null,0,""]
[0,null,null,null,null,null,null,null,null,null,null,"","",null,null,null,0,""]
[0,null,null,null,null,null,null,null,null,null,null,"","",null,null,null,0,""]
[0,null,null,null,null,null,null,null,null,null,null,"","",null,null,null,0,""]
[0,null,null,null,null,null,null,null,null,null,null,"","",null,null,null,0,""]
[0,null,null,null,null,null,null,null,null,null,null,"","",null,null,null,0,""]
[0,null,null,null,null,null,null,null,null,null,null,"","",null,null,null,0,""]
[0,null,null,null,null,null,null,null,null,null,null,"","",null,null,null,0,""]
[0,null,null,null,null,null,null,null,null,null,null,"","",null,null,null,0,""]
[0,null,null,null,null,null,null,null,null,null,null,"","",null,null,null,0,""]
[0,null,null,null,null,null,null,null,null,null,null,"","",null,null,null,0,""]
[0,null,null,null,null,null,null,null,null,null,null,"","",null,null,null,0,""]
[0,null,null,null,null,null,null,null,null,null,null,"","",null,null,null,0,""]
[0,null,null,null,null,null,null,null,null,null,null,{"$f":"IFERROR(IF(I654=\"\",\"\",IF(K654=\"\",TODAY()-B654,K654-B654)),\"\")","v":""},{"$f":"IFERROR(IF(I654=\"\",\"\",IF(AND(K654=\"\",I654>=TODAY()),\"EM ANDAMENTO\",IF(AND(K654=\"\",I654<TODAY()),\"ENTREGA ATRASADA\",IF(AND(K654<>\"\",K654-I654<0),\"ENTREGOU NO PRAZO\",\"ENTREGOU ATRASADO\")))),\"\")","v":""},null,null,null,0,{"$f":"IF(B654=\"\",\"\",MONTH(B654))","v":""}]
[{"$f":"C655","v":0},null,null,null,null,null,null,null,null,null,null,"","",null,null,null,0,""]
[0,null,null,null,null,null,null,null,null,null,null,"","",null,null,null,0,""]
[0,null,null,null,null,null,null,null,null,null,null,"","",null,null,null,0,""]
[0,null,null,null,null,null,null,null,null,null,null,"","",null,null,null,0,""]
[0,null,null,null,null,null,null,null,null,null,null,"","",null,null,null,0,""]
[0,null,null,null,null,null,null,null,null,null,null,"","",null,null,null,0,""]
[0,null,null,null,null,null,null,null,null,null,null,"","",null,null,null,0,""]
[0,null,null,null,null,null,null,null,null,null,null,"","",null,null,null,0,""]
[0,null,null,null,null,null,null,null,null,null,null,"","",null,null,null,0,""]
[0,null,null,null,null,null,null,null,null,null,null,"","",null,null,null,0,""]
[0,null,null,null,null,null,null,null,null,null,null,"","",null,null,null,0,""]
[0,null,null,null,null,null,null,null,null,null,null,"","",null,null,null,0,""]
[0,null,null,null,null,null,null,null,null,null,null,"","",null,null,null,0,""]
[0,null,null,null,null,null,null,null,null,null,null,"","",null,null,null,0,""]
[0,null,null,null,null,null,null,null,null,null,null,"","",null,null,null,0,""]
[0,null,null,null,null,null,null,null,null,null,null,"","",null,null,null,0,""]
[0,null,null,null,null,null,null,null,null,null,null,"","",null,null,null,0,""]
[0,null,null,null,null,null,null,null,null,null,null,"","",null,null,null,0,""]
[0,null,null,null,null,null,null,null,null,null,null,"","",null,null,null,0,""]
[0,null,null,null,null,null,null,null,null,null,null,"","",null,null,null,0,""]
[0,null,null,null,null,null,null,null,null,null,null,"","",null,null,null,0,""]
[0,null,null,null,null,null,null,null,null,null,null,"","",null,null,null,0,""]
[0,null,null,null,null,null,null,null,null,null,null,"","",null,null,null,0,""]
[0,null,null,null,null,null,null,null,null,null,null,"","",null,null,null,0,""]
[0,null,null,null,null,null,null,null,null,null,null,"","",null,null,null,0,""]
[0,null,null,null,null,null,null,null,null,null,null,"","",null,null,null,0,""]
[0,null,null,null,null,null,null,null,null,null,null,"","",null,null,null,0,""]
[0,null,null,null,null,null,null,null,null,null,null,"","",null,null,null,0,""]
[0,null,null,null,null,null,null,null,null,null,null,"","",null,null,null,0,""]
[0,null,null,null,null,null,null,null,null,null,null,"","",null,null,null,{"$f":"SUM(N684:P684)","v":0},""]
[0,null,null,null,null,null,null,null,null,null,null,"","",null,null,null,0,""]
[0,null,null,null,null,null,null,null,null,null,null,"","",null,null,null,0,""]
[0,null,null,null,null,null,null,null,null,null,null,"","",null,null,null,0,""]
[0,null,null,null,null,null,null,null,null,null,null,"","",null,null,null,0,""]
[0,null,null,null,null,null,null,null,null,null,null,"","",null,null,null,0,""]
[0,null,null,null,null,null,null,null,null,null,null,"","",null,null,null,0,""]
[0,null,null,null,null,null,null,null,null,null,null,"","",null,null,null,0,""]
[0,null,null,null,null,null,null,null,null,null,null,"","",null,null,null,0,""]
[0,null,null,null,null,null,null,null,null,null,null,"","",null,null,null,0,""]
[0,null,null,null,null,null,null,null,null,null,null,"","",null,null,null,0,""]
[0,null,null,null,null,null,null,null,null,null,null,"","",null,null,null,0,""]
[0,null,null,null,null,null,null,null,null,null,null,"","",null,null,null,0,""]
[0,null,null,null,null,null,null,null,null,null,null,"","",null,null,null,0,""]
[0,null,null,null,null,null,null,null,null,null,null,"","",null,null,null,0,""]
[0,null,null,null,null,null,null,null,null,null,null,"","",null,null,null,0,""]
[0,null,null,null,null,null,null,null,null,null,null,"","",null,null,null,0,""]
[0,null,null,null,null,null,null,null,null,null,null,"","",null,null,null,0,""]
[0,null,null,null,null,null,null,null,null,null,null,"","",null,null,null,0,""]
[0,null,null,null,null,null,null,null,null,null,null,"","",null,null,null,0,""]
[0,null,null,null,null,null,null,null,null,null,null,"","",null,null,null,0,""]
[0,null,null,null,null,null,null,null,null,null,null,"","",null,null,null,0,""]
[0,null,null,null,null,null,null,null,null,null,null,"","",null,null,null,0,""]
[0,null,null,null,null,null,null,null,null,null,null,"","",null,null,null,0,""]
[0,null,null,null,null,null,null,null,null,null,null,"","",null,null,null,0,""]
[0,null,null,null,null,null,null,null,null,null,null,"","",null,null,null,0,""]
[0,null,null,null,null,null,null,null,null,null,null,"","",null,null,null,0,""]
[0,null,null,null,null,null,null,null,null,null,null,"","",null,null,null,0,""]
[0,null,null,null,null,null,null,null,null,null,null,"","",null,null,null,0,""]
[0,null,null,null,null,null,null,null,null,null,null,"","",null,null,null,0,""]
[0,null,null,null,null,null,null,null,null,null,null,"","",null,null,null,0,""]
[0,null,null,null,null,null,null,null,null,null,null,"","",null,null,null,0,""]
[0,null,null,null,null,null,null,null,null,null,null,"","",null,null,null,0,""]
[0,null,null,null,null,null,null,null,null,null,null,"","",null,null,null,0,""]
[0,null,null,null,null,null,null,null,null,null,null,{"$f":"IFERROR(IF(I718=\"\",\"\",IF(K718=\"\",TODAY()-B718,K718-B718)),\"\")","v":""},{"$f":"IFERROR(IF(I718=\"\",\"\",IF(AND(K718=\"\",I718>=TODAY()),\"EM ANDAMENTO\",IF(AND(K718=\"\",I718<TODAY()),\"ENTREGA ATRASADA\",IF(AND(K718<>\"\",K718-I718<0),\"ENTREGOU NO PRAZO\",\"ENTREGOU ATRASADO\")))),\"\")","v":""},null,null,null,0,{"$f":"IF(B718=\"\",\"\",MONTH(B718))","v":""}]
[{"$f":"C719","v":0},null,null,null,null,null,null,null,null,null,null,"","",null,null,null,0,""]
[0,null,null,null,null,null,null,null,null,null,null,"","",null,null,null,0,""]
[0,null,null,null,null,null,null,null,null,null,null,"","",null,null,null,0,""]
[0,null,null,null,null,null,null,null,null,null,null,"","",null,null,null,0,""]
[0,null,null,null,null,null,null,null,null,null,null,"","",null,null,null,0,""]
[0,null,null,null,null,null,null,null,null,null,null,"","",null,null,null,0,""]
[0,null,null,null,null,null,null,null,null,null,null,"","",null,null,null,0,""]
[0,null,null,null,null,null,null,null,null,null,null,"","",null,null,null,0,""]
[0,null,null,null,null,null,null,null,null,null,null,"","",null,null,null,0,""]
[0,null,null,null,null,null,null,null,null,null,null,"","",null,null,null,0,""]
[0,null,null,null,null,null,null,null,null,null,null,"","",null,null,null,0,""]
[0,null,null,null,null,null,null,null,null,null,null,"","",null,null,null,0,""]
[0,null,null,null,null,null,null,null,null,null,null,"","",null,null,null,0,""]
[0,null,null,null,null,null,null,null,null,null,null,"","",null,null,null,0,""]
[0,null,null,null,null,null,null,null,null,null,null,"","",null,null,null,0,""]
[0,null,null,null,null,null,null,null,null,null,null,"","",null,null,null,0,""]
[0,null,null,null,null,null,null,null,null,null,null,"","",null,null,null,0,""]
[0,null,null,null,null,null,null,null,null,null,null,"","",null,null,null,0,""]
[0,null,null,null,null,null,null,null,null,null,null,"","",null,null,null,0,""]
[0,null,null,null,null,null,null,null,null,null,null,"","",null,null,null,0,""]
[0,null,null,null,null,null,null,null,null,null,null,"","",null,null,null,0,""]
[0,null,null,null,null,null,null,null,null,null,null,"","",null,null,null,0,""]
[0,null,null,null,null,null,null,null,null,null,null,"","",null,null,null,0,""]
[0,null,null,null,null,null,null,null,null,null,null,"","",null,null,null,0,""]
[0,null,null,null,null,null,null,null,null,null,null,"","",null,null,null,0,""]
[0,null,null,null,null,null,null,null,null,null,null,"","",null,null,null,0,""]
[0,null,null,null,null,null,null,null,null,null,null,"","",null,null,null,0,""]
[0,null,null,null,null,null,null,null,null,null,null,"","",null,null,null,0,""]
[0,null,null,null,null,null,null,null,null,null,null,"","",null,null,null,0,""]
[0,null,null,null,null,null,null,null,null,null,null,"","",null,null,null,{"$f":"SUM(N748:P748)","v":0},""]
[0,null,null,null,null,null,null,null,null,null,null,"","",null,null,null,0,""]
[0,null,null,null,null,null,null,null,null,null,null,"","",null,null,null,0,""]
[0,null,null,null,null,null,null,null,null,null,null,"","",null,null,null,0,""]
[0,null,null,null,null,null,null,null,null,null,null,"","",null,null,null,0,""]
[0,null,null,null,null,null,null,null,null,null,null,"","",null,null,null,0,""]
[0,null,null,null,null,null,null,null,null,null,null,"","",null,null,null,0,""]
[0,null,null,null,null,null,null,null,null,null,null,"","",null,null,null,0,""]
[0,null,null,null,null,null,null,null,null,null,null,"","",null,null,null,0,""]
[0,null,null,null,null,null,null,null,null,null,null,"","",null,null,null,0,""]
[0,null,null,null,null,null,null,null,null,null,null,"","",null,null,null,0,""]
[0,null,null,null,null,null,null,null,null,null,null,"","",null,null,null,0,""]
[0,null,null,null,null,null,null,null,null,null,null,"","",null,null,null,0,""]
[0,null,null,null,null,null,null,null,null,null,null,"","",null,null,null,0,""]
[0,null,null,null,null,null,null,null,null,null,null,"","",null,null,null,0,""]
[0,null,null,null,null,null,null,null,null,null,null,"","",null,null,null,0,""]
[0,null,null,null,null,null,null,null,null,null,null,"","",null,null,null,0,""]
[0,null,null,null,null,null,null,null,null,null,null,"","",null,null,null,0,""]
[0,null,null,null,null,null,null,null,null,null,null,"","",null,null,null,0,""]
[0,null,null,null,null,null,null,null,null,null,null,"","",null,null,null,0,""]
[0,null,null,null,null,null,null,null,null,null,null,"","",null,null,null,0,""]
[0,null,null,null,null,null,null,null,null,null,null,"","",null,null,null,0,""]
[0,null,null,null,null,null,null,null,null,null,null,"","",null,null,null,0,""]
[0,null,null,null,null,null,null,null,null,null,null,"","",null,null,null,0,""]
[0,null,null,null,null,null,null,null,null,null,null,"","",null,null,null,0,""]
[0,null,null,null,null,null,null,null,null,null,null,"","",null,null,null,0,""]
[0,null,null,null,null,null,null,null,null,null,null,"","",null,null,null,0,""]
[0,null,null,null,null,null,null,null,null,null,null,"","",null,null,null,0,""]
[0,null,null,null,null,null,null,null,null,null,null,"","",null,null,null,0,""]
[0,null,null,null,null,null,null,null,null,null,null,"","",null,null,null,0,""]
[0,null,null,null,null,null,null,null,null,null,null,"","",null,null,null,0,""]
[0,null,null,null,null,null,null,null,null,null,null,"","",null,null,null,0,""]
[0,null,null,null,null,null,null,null,null,null,null,"","",null,null,null,0,""]
[0,null,null,null,null,null,null,null,null,null,null,"","",null,null,null,0,""]
[0,null,null,null,null,null,null,null,null,null,null,{"$f":"IFERROR(IF(I782=\"\",\"\",IF(K782=\"\",TODAY()-B782,K782-B782)),\"\")","v":""},{"$f":"IFERROR(IF(I782=\"\",\"\",IF(AND(K782=\"\",I782>=TODAY()),\"EM ANDAMENTO\",IF(AND(K782=\"\",I782<TODAY()),\"ENTREGA ATRASADA\",IF(AND(K782<>\"\",K782-I782<0),\"ENTREGOU NO PRAZO\",\"ENTREGOU ATRASADO\")))),\"\")","v":""},null,null,null,0,{"$f":"IF(B782=\"\",\"\",MONTH(B782))","v":""}]
[{"$f":"C783","v":0},null,null,null,null,null,null,null,null,null,null,"","",null,null,null,0,""]
[0,null,null,null,null,null,null,null,null,null,null,"","",null,null,null,0,""]
[0,null,null,null,null,null,null,null,null,null,null,"","",null,null,null,0,""]
[0,null,null,null,null,null,null,null,null,null,null,"","",null,null,null,0,""]
[0,null,null,null,null,null,null,null,null,null,null,"","",null,null,null,0,""]
[0,null,null,null,null,null,null,null,null,null,null,"","",null,null,null,0,""]
[0,null,null,null,null,null,null,null,null,null,null,"","",null,null,null,0,""]
[0,null,null,null,null,null,null,null,null,null,null,"","",null,null,null,0,""]
[0,null,null,null,null,null,null,null,null,null,null,"","",null,null,null,0,""]
[0,null,null,null,null,null,null,null,null,null,null,"","",null,null,null,0,""]
[0,null,null,null,null,null,null,null,null,null,null,"","",null,null,null,0,""]
[0,null,null,null,null,null,null,null,null,null,null,"","",null,null,null,0,""]
[0,null,null,null,null,null,null,null,null,null,null,"","",null,null,null,0,""]
[0,null,null,null,null,null,null,null,null,null,null,"","",null,null,null,0,""]
[0,null,null,null,null,null,null,null,null,null,null,"","",null,null,null,0,""]
[0,null,null,null,null,null,null,null,null,null,null,"","",null,null,null,0,""]
[0,null,null,null,null,null,null,null,null,null,null,"","",null,null,null,0,""]
[0,null,null,null,null,null,null,null,null,null,null,"","",null,null,null,0,""]
[0,null,null,null,null,null,null,null,null,null,null,"","",null,null,null,0,""]
[0,null,null,null,null,null,null,null,null,null,null,"","",null,null,null,0,""]
[0,null,null,null,null,null,null,null,null,null,null,"","",null,null,null,0,""]
[0,null,null,null,null,null,null,null,null,null,null,"","",null,null,null,0,""]
[0,null,null,null,null,null,null,null,null,null,null,"","",null,null,null,0,""]
[0,null,null,null,null,null,null,null,null,null,null,"","",null,null,null,0,""]
[0,null,null,null,null,null,null,null,null,null,null,"","",null,null,null,0,""]
[0,null,null,null,null,null,null,null,null,null,null,"","",null,null,null,0,""]
[0,null,null,null,null,null,null,null,null,null,null,"","",null,null,null,0,""]
[0,null,null,null,null,null,null,null,null,null,null,"","",null,null,null,0,""]
[0,null,null,null,null,null,null,null,null,null,null,"","",null,null,null,0,""]
[0,null,null,null,null,null,null,null,null,null,null,"","",null,null,null,{"$f":"SUM(N812:P812)","v":0},""]
[0,null,null,null,null,null,null,null,null,null,null,"","",null,null,null,0,""]
[0,null,null,null,null,null,null,null,null,null,null,"","",null,null,null,0,""]
[0,null,null,null,null,null,null,null,null,null,null,"","",null,null,null,0,""]
[0,null,null,null,null,null,null,null,null,null,null,"","",null,null,null,0,""]
[0,null,null,null,null,null,null,null,null,null,null,"","",null,null,null,0,""]
[0,null,null,null,null,null,null,null,null,null,null,"","",null,null,null,0,""]
[0,null,null,null,null,null,null,null,null,null,null,"","",null,null,null,0,""]
[0,null,null,null,null,null,null,null,null,null,null,"","",null,null,null,0,""]
[0,null,null,null,null,null,null,null,null,null,null,"","",null,null,null,0,""]
[0,null,null,null,null,null,null,null,null,null,null,"","",null,null,null,0,""]
[0,null,null,null,null,null,null,null,null,null,null,"","",null,null,null,0,""]
[0,null,null,null,null,null,null,null,null,null,null,"","",null,null,null,0,""]
[0,null,null,null,null,null,null,null,null,null,null,"","",null,null,null,0,""]
[0,null,null,null,null,null,null,null,null,null,null,"","",null,null,null,0,""]
[0,null,null,null,null,null,null,null,null,null,null,"","",null,null,null,0,""]
[0,null,null,null,null,null,null,null,null,null,null,"","",null,null,null,0,""]
[0,null,null,null,null,null,null,null,null,null,null,"","",null,null,null,0,""]
[0,null,null,null,null,null,null,null,null,null,null,"","",null,null,null,0,""]
[0,null,null,null,null,null,null,null,null,null,null,"","",null,null,null,0,""]
[0,null,null,null,null,null,null,null,null,null,null,"","",null,null,null,0,""]
[0,null,null,null,null,null,null,null,null,null,null,"","",null,null,null,0,""]
[0,null,null,null,null,null,null,null,null,null,null,"","",null,null,null,0,""]
[0,null,null,null,null,null,null,null,null,null,null,"","",null,null,null,0,""]
[0,null,null,null,null,null,null,null,null,null,null,"","",null,null,null,0,""]
[0,null,null,null,null,null,null,null,null,null,null,"","",null,null,null,0,""]
[0,null,null,null,null,null,null,null,null,null,null,"","",null,null,null,0,""]
[0,null,null,null,null,null,null,null,null,null,null,"","",null,null,null,0,""]
[0,null,null,null,null,null,null,null,null,null,null,"","",null,null,null,0,""]
[0,null,null,null,null,null,null,null,null,null,null,"","",null,null,null,0,""]
[0,null,null,null,null,null,null,null,null,null,null,"","",null,null,null,0,""]
[0,null,null,null,null,null,null,null,null,null,null,"","",null,null,null,0,""]
[0,null,null,null,null,null,null,null,null,null,null,"","",null,null,null,0,""]
[0,null,null,null,null,null,null,null,null,null,null,"","",null,null,null,0,""]
[0,null,null,null,null,null,null,null,null,null,null,{"$f":"IFERROR(IF(I846=\"\",\"\",IF(K846=\"\",TODAY()-B846,K846-B846)),\"\")","v":""},{"$f":"IFERROR(IF(I846=\"\",\"\",IF(AND(K846=\"\",I846>=TODAY()),\"EM ANDAMENTO\",IF(AND(K846=\"\",I846<TODAY()),\"ENTREGA ATRASADA\",IF(AND(K846<>\"\",K846-I846<0),\"ENTREGOU NO PRAZO\",\"ENTREGOU ATRASADO\")))),\"\")","v":""},null,null,null,0,{"$f":"IF(B846=\"\",\"\",MONTH(B846))","v":""}]
[{"$f":"C847","v":0},null,null,null,null,null,null,null,null,null,null,"","",null,null,null,0,""]
[0,null,null,null,null,null,null,null,null,null,null,"","",null,null,null,0,""]
[0,null,null,null,null,null,null,null,null,null,null,"","",null,null,null,0,""]
[0,null,null,null,null,null,null,null,null,null,null,"","",null,null,null,0,""]
[0,null,null,null,null,null,null,null,null,null,null,"","",null,null,null,0,""]
[0,null,null,null,null,null,null,null,null,null,null,"","",null,null,null,0,""]
[0,null,null,null,null,null,null,null,null,null,null,"","",null,null,null,0,""]
[0,null,null,null,null,null,null,null,null,null,null,"","",null,null,null,0,""]
[0,null,null,null,null,null,null,null,null,null,null,"","",null,null,null,0,""]
[0,null,null,null,null,null,null,null,null,null,null,"","",null,null,null,0,""]
[0,null,null,null,null,null,null,null,null,null,null,"","",null,null,null,0,""]
[0,null,null,null,null,null,null,null,null,null,null,"","",null,null,null,0,""]
[0,null,null,null,null,null,null,null,null,null,null,"","",null,null,null,0,""]
[0,null,null,null,null,null,null,null,null,null,null,"","",null,null,null,0,""]
[0,null,null,null,null,null,null,null,null,null,null,"","",null,null,null,0,""]
[0,null,null,null,null,null,null,null,null,null,null,"","",null,null,null,0,""]
[0,null,null,null,null,null,null,null,null,null,null,"","",null,null,null,0,""]
[0,null,null,null,null,null,null,null,null,null,null,"","",null,null,null,0,""]
[0,null,null,null,null,null,null,null,null,null,null,"","",null,null,null,0,""]
[0,null,null,null,null,null,null,null,null,null,null,"","",null,null,null,0,""]
[0,null,null,null,null,null,null,null,null,null,null,"","",null,null,null,0,""]
[0,null,null,null,null,null,null,null,null,null,null,"","",null,null,null,0,""]
[0,null,null,null,null,null,null,null,null,null,null,"","",null,null,null,0,""]
[0,null,null,null,null,null,null,null,null,null,null,"","",null,null,null,0,""]
[0,null,null,null,null,null,null,null,null,null,null,"","",null,null,null,0,""]
[0,null,null,null,null,null,null,null,null,null,null,"","",null,null,null,0,""]
[0,null,null,null,null,null,null,null,null,null,null,"","",null,null,null,0,""]
[0,null,null,null,null,null,null,null,null,null,null,"","",null,null,null,0,""]
[0,null,null,null,null,null,null,null,null,null,null,"","",null,null,null,0,""]
[0,null,null,null,null,null,null,null,null,null,null,"","",null,null,null,{"$f":"SUM(N876:P876)","v":0},""]
[0,null,null,null,null,null,null,null,null,null,null,"","",null,null,null,0,""]
[0,null,null,null,null,null,null,null,null,null,null,"","",null,null,null,0,""]
[0,null,null,null,null,null,null,null,null,null,null,"","",null,null,null,0,""]
[0,null,null,null,null,null,null,null,null,null,null,"","",null,null,null,0,""]
[0,null,null,null,null,null,null,null,null,null,null,"","",null,null,null,0,""]
[0,null,null,null,null,null,null,null,null,null,null,"","",null,null,null,0,""]
[0,null,null,null,null,null,null,null,null,null,null,"","",null,null,null,0,""]
[0,null,null,null,null,null,null,null,null,null,null,"","",null,null,null,0,""]
[0,null,null,null,null,null,null,null,null,null,null,"","",null,null,null,0,""]
[0,null,null,null,null,null,null,null,null,null,null,"","",null,null,null,0,""]
[0,null,null,null,null,null,null,null,null,null,null,"","",null,null,null,0,""]
[0,null,null,null,null,null,null,null,null,null,null,"","",null,null,null,0,""]
[0,null,null,null,null,null,null,null,null,null,null,"","",null,null,null,0,""]
[0,null,null,null,null,null,null,null,null,null,null,"","",null,null,null,0,""]
[0,null,null,null,null,null,null,null,null,null,null,"","",null,null,null,0,""]
[0,null,null,null,null,null,null,null,null,null,null,"","",null,null,null,0,""]
[0,null,null,null,null,null,null,null,null,null,null,"","",null,null,null,0,""]
[0,null,null,null,null,null,null,null,null,null,null,"","",null,null,null,0,""]
[0,null,null,null,null,null,null,null,null,null,null,"","",null,null,null,0,""]
[0,null,null,null,null,null,null,null,null,null,null,"","",null,null,null,0,""]
[0,null,null,null,null,null,null,null,null,null,null,"","",null,null,null,0,""]
[0,null,null,null,null,null,null,null,null,null,null,"","",null,null,null,0,""]
[0,null,null,null,null,null,null,null,null,null,null,"","",null,null,null,0,""]
[0,null,null,null,null,null,null,null,null,null,null,"","",null,null,null,0,""]
[0,null,null,null,null,null,null,null,null,null,null,"","",null,null,null,0,""]
[0,null,null,null,null,null,null,null,null,null,null,"","",null,null,null,0,""]
[0,null,null,null,null,null,null,null,null,null,null,"","",null,null,null,0,""]
[0,null,null,null,null,null,null,null,null,null,null,"","",null,null,null,0,""]
[0,null,null,null,null,null,null,null,null,null,null,"","",null,null,null,0,""]
[0,null,null,null,null,null,null,null,null,null,null,"","",null,null,null,0,""]
[0,null,null,null,null,null,null,null,null,null,null,"","",null,null,null,0,""]
[0,null,null,null,null,null,null,null,null,null,null,"","",null,null,null,0,""]
[0,null,null,null,null,null,null,null,null,null,null,"","",null,null,null,0,""]
[0,null,null,null,null,null,null,null,null,null,null,{"$f":"IFERROR(IF(I910=\"\",\"\",IF(K910=\"\",TODAY()-B910,K910-B910)),\"\")","v":""},{"$f":"IFERROR(IF(I910=\"\",\"\",IF(AND(K910=\"\",I910>=TODAY()),\"EM ANDAMENTO\",IF(AND(K910=\"\",I910<TODAY()),\"ENTREGA ATRASADA\",IF(AND(K910<>\"\",K910-I910<0),\"ENTREGOU NO PRAZO\",\"ENTREGOU ATRASADO\")))),\"\")","v":""},null,null,null,0,{"$f":"IF(B910=\"\",\"\",MONTH(B910))","v":""}]
[{"$f":"C911","v":0},null,null,null,null,null,null,null,null,null,null,"","",null,null,null,0,""]
[0,null,null,null,null,null,null,null,null,null,null,"","",null,null,null,0,""]
[0,null,null,null,null,null,null,null,null,null,null,"","",null,null,null,0,""]
[0,null,null,null,null,null,null,null,null,null,null,"","",null,null,null,0,""]
[0,null,null,null,null,null,null,null,null,null,null,"","",null,null,null,0,""]
[0,null,null,null,null,null,null,null,null,null,null,"","",null,null,null,0,""]
[0,null,null,null,null,null,null,null,null,null,null,"","",null,null,null,0,""]
[0,null,null,null,null,null,null,null,null,null,null,"","",null,null,null,0,""]
[0,null,null,null,null,null,null,null,null,null,null,"","",null,null,null,0,""]
[0,null,null,null,null,null,null,null,null,null,null,"","",null,null,null,0,""]
[0,null,null,null,null,null,null,null,null,null,null,"","",null,null,null,0,""]
[0,null,null,null,null,null,null,null,null,null,null,"","",null,null,null,0,""]
[0,null,null,null,null,null,null,null,null,null,null,"","",null,null,null,0,""]
[0,null,null,null,null,null,null,null,null,null,null,"","",null,null,null,0,""]
[0,null,null,null,null,null,null,null,null,null,null,"","",null,null,null,0,""]
[0,null,null,null,null,null,null,null,null,null,null,"","",null,null,null,0,""]
[0,null,null,null,null,null,null,null,null,null,null,"","",null,null,null,0,""]
[0,null,null,null,null,null,null,null,null,null,null,"","",null,null,null,0,""]
[0,null,null,null,null,null,null,null,null,null,null,"","",null,null,null,0,""]
[0,null,null,null,null,null,null,null,null,null,null,"","",null,null,null,0,""]
[0,null,null,null,null,null,null,null,null,null,null,"","",null,null,null,0,""]
[0,null,null,null,null,null,null,null,null,null,null,"","",null,null,null,0,""]
[0,null,null,null,null,null,null,null,null,null,null,"","",null,null,null,0,""]
[0,null,null,null,null,null,null,null,null,null,null,"","",null,null,null,0,""]
[0,null,null,null,null,null,null,null,null,null,null,"","",null,null,null,0,""]
[0,null,null,null,null,null,null,null,null,null,null,"","",null,null,null,0,""]
[0,null,null,null,null,null,null,null,null,null,null,"","",null,null,null,0,""]
[0,null,null,null,null,null,null,null,null,null,null,"","",null,null,null,0,""]
[0,null,null,null,null,null,null,null,null,null,null,"","",null,null,null,0,""]
[0,null,null,null,null,null,null,null,null,null,null,"","",null,null,null,{"$f":"SUM(N940:P940)","v":0},""]
[0,null,null,null,null,null,null,null,null,null,null,"","",null,null,null,0,""]
[0,null,null,null,null,null,null,null,null,null,null,"","",null,null,null,0,""]
[0,null,null,null,null,null,null,null,null,null,null,"","",null,null,null,0,""]
[0,null,null,null,null,null,null,null,null,null,null,"","",null,null,null,0,""]
[0,null,null,null,null,null,null,null,null,null,null,"","",null,null,null,0,""]
[0,null,null,null,null,null,null,null,null,null,null,"","",null,null,null,0,""]
[0,null,null,null,null,null,null,null,null,null,null,"","",null,null,null,0,""]
[0,null,null,null,null,null,null,null,null,null,null,"","",null,null,null,0,""]
[0,null,null,null,null,null,null,null,null,null,null,"","",null,null,null,0,""]
[0,null,null,null,null,null,null,null,null,null,null,"","",null,null,null,0,""]
[0,null,null,null,null,null,null,null,null,null,null,"","",null,null,null,0,""]
[0,null,null,null,null,null,null,null,null,null,null,"","",null,null,null,0,""]
[0,null,null,null,null,null,null,null,null,null,null,"","",null,null,null,0,""]
[0,null,null,null,null,null,null,null,null,null,null,"","",null,null,null,0,""]
[0,null,null,null,null,null,null,null,null,null,null,"","",null,null,null,0,""]
[0,null,null,null,null,null,null,null,null,null,null,"","",null,null,null,0,""]
[0,null,null,null,null,null,null,null,null,null,null,"","",null,null,null,0,""]
[0,null,null,null,null,null,null,null,null,null,null,"","",null,null,null,0,""]
[0,null,null,null,null,null,null,null,null,null,null,"","",null,null,null,0,""]
[0,null,null,null,null,null,null,null,null,null,null,"","",null,null,null,0,""]
[0,null,null,null,null,null,null,null,null,null,null,"","",null,null,null,0,""]
[0,null,null,null,null,null,null,null,null,null,null,"","",null,null,null,0,""]
[0,null,null,null,null,null,null,null,null,null,null,"","",null,null,null,0,""]
[0,null,null,null,null,null,null,null,null,null,null,"","",null,null,null,0,""]
[0,null,null,null,null,null,null,null,null,null,null,"","",null,null,null,0,""]
[0,null,null,null,null,null,null,null,null,null,null,"","",null,null,null,0,""]
[0,null,null,null,null,null,null,null,null,null,null,"","",null,null,null,0,""]
[0,null,null,null,null,null,null,null,null,null,null,"","",null,null,null,0,""]
[0,null,null,null,null,null,null,null,null,null,null,"","",null,null,null,0,""]
[0,null,null,null,null,null,null,null,null,null,null,"","",null,null,null,0,""]
[0,null,null,null,null,null,null,null,null,null,null,"","",null,null,null,0,""]
[0,null,null,null,null,null,null,null,null,null,null,"","",null,null,null,0,""]
[0,null,null,null,null,null,null,null,null,null,null,"","",null,null,null,0,""]
[0,null,null,null,null,null,null,null,null,null,null,{"$f":"IFERROR(IF(I974=\"\",\"\",IF(K974=\"\",TODAY()-B974,K974-B974)),\"\")","v":""},{"$f":"IFERROR(IF(I974=\"\",\"\",IF(AND(K974=\"\",I974>=TODAY()),\"EM ANDAMENTO\",IF(AND(K974=\"\",I974<TODAY()),\"ENTREGA ATRASADA\",IF(AND(K974<>\"\",K974-I974<0),\"ENTREGOU NO PRAZO\",\"ENTREGOU ATRASADO\")))),\"\")","v":""},null,null,null,0,""]
[{"$f":"C975","v":0},null,null,null,null,null,null,null,null,null,null,"","",null,null,null,0,{"$f":"IF(B975=\"\",\"\",MONTH(B975))","v":""}]
[0,null,null,null,null,null,null,null,null,null,null,"","",null,null,null,0,""]
[0,null,null,null,null,null,null,null,null,null,null,"","",null,null,null,0,""]
[0,null,null,null,null,null,null,null,null,null,null,"","",null,null,null,0,""]
[0,null,null,null,null,null,null,null,null,null,null,"","",null,null,null,0,""]
[0,null,null,null,null,null,null,null,null,null,null,"","",null,null,null,0,""]
[0,null,null,null,null,null,null,null,null,null,null,"","",null,null,null,0,""]
[0,null,null,null,null,null,null,null,null,null,null,"","",null,null,null,0,""]
[0,null,null,null,null,null,null,null,null,null,null,"","",null,null,null,0,""]
[0,null,null,null,null,null,null,null,null,null,null,"","",null,null,null,0,""]
[0,null,null,null,null,null,null,null,null,null,null,"","",null,null,null,0,""]
[0,null,null,null,null,null,null,null,null,null,null,"","",null,null,null,0,""]
[0,null,null,null,null,null,null,null,null,null,null,"","",null,null,null,0,""]
[0,null,null,null,null,null,null,null,null,null,null,"","",null,null,null,0,""]
[0,null,null,null,null,null,null,null,null,null,null,"","",null,null,null,0,""]
[0,null,null,null,null,null,null,null,null,null,null,"","",null,null,null,0,""]
[0,null,null,null,null,null,null,null,null,null,null,"","",null,null,null,0,""]
[0,null,null,null,null,null,null,null,null,null,null,"","",null,null,null,0,""]
[0,null,null,null,null,null,null,null,null,null,null,"","",null,null,null,0,""]
[0,null,null,null,null,null,null,null,null,null,null,"","",null,null,null,0,""]
[0,null,null,null,null,null,null,null,null,null,null,"","",null,null,null,0,""]
[0,null,null,null,null,null,null,null,null,null,null,"","",null,null,null,0,""]
[0,null,null,null,null,null,null,null,null,null,null,"","",null,null,null,0,""]
[0,null,null,null,null,null,null,null,null,null,null,"","",null,null,null,0,""]
[0,null,null,null,null,null,null,null,null,null,null,"","",null,null,null,0,""]
[0,null,null,null,null,null,null,null,null,null,null,"","",null,null,null,0,""]

{"sheet":"Rastreio do Pedido","index":4,"n_rows":24,"n_cols":3,"rows_kept":24,"cut":false,"hidden":false,"merged":[[9,2,9,14],[23,2,23,5],[19,2,19,5],[17,2,17,3],[21,2,21,3],[11,1,11,14],[13,2,13,3],[15,2,15,3]]}
[]
[]
[]
[]
[]
[]
[]
[]
[]
[null,"Empresa:",{"$f":"Menu!G26","v":"Empresa ABCDE"}]
[]
[null,"RASTREIO DE PEDIDO\nInsira o N° do Pedido para ver informações do pedido"]
[]
[null,"Insira o N° do Pedido: ","555784-6"]
[]
[null,"Status do Pedido:",{"$f":"VLOOKUP($C$14,Entregas!$A$14:$R$1000,6,0)","v":"PEDIDO RECEBIDO"}]
[]
[null,"Status Entrega:",{"$f":"VLOOKUP($C$14,Entregas!$A$14:$R$1000,13,0)","v":"ENTREGOU NO PRAZO"}]
[]
[null,"Cliente:",{"$f":"VLOOKUP($C$14,Entregas!$A$14:$R$1000,5,0)","v":"CLIENTE 1"}]
[]
[null,"Telefone:",{"$f":"VLOOKUP($C$20,Cliente!$A$13:$E$43,4,0)","v":"99884-0000"}]
[]
[null,"Endereço:",{"$f":"VLOOKUP($C$20,Cliente!$A$13:$E$43,5,0)","v":"Rua Marcelo Correa"}]

{"sheet":"Dash","index":5,"n_rows":11,"n_cols":5,"rows_kept":11,"cut":false,"hidden":false,"merged":[[10,2,10,3],[10,4,10,20]]}
[]
[]
[]
[]
[]
[]
[]
[]
[]
[]
[null,null,"Empresa:",null,{"$f":"Menu!G26","v":"Empresa ABCDE"}]

{"sheet":"Instruções","index":6,"n_rows":0,"n_cols":0,"rows_kept":0,"cut":false,"hidden":false,"merged":[]}

{"sheet":"CALC","index":7,"n_rows":16,"n_cols":18,"rows_kept":16,"cut":false,"hidden":false,"merged":[]}
[null,"JAN","FEV","MAR","ABR","MAI","JUN","JUL","AGO","SET","OUT","NOV","DEZ","TOTAL",null,null,null,"Fase do pedido"]
[null,1,2,3,4,5,6,7,8,9,10,11,12,null,null,null,null,"PEDIDO RECEBIDO"]
["EM ANDAMENTO",{"$f":"COUNTIFS(Entregas!$M$14:$M$1000,CALC!$A3,Entregas!$R$14:$R$1000,CALC!B$2)","v":0},{"$f":"COUNTIFS(Entregas!$M$14:$M$1000,CALC!$A3,Entregas!$R$14:$R$1000,CALC!C$2)","v":0},{"$f":"COUNTIFS(Entregas!$M$14:$M$1000,CALC!$A3,Entregas!$R$14:$R$1000,CALC!D$2)","v":0},{"$f":"COUNTIFS(Entregas!$M$14:$M$1000,CALC!$A3,Entregas!$R$14:$R$1000,CALC!E$2)","v":0},{"$f":"COUNTIFS(Entregas!$M$14:$M$1000,CALC!$A3,Entregas!$R$14:$R$1000,CALC!F$2)","v":0},{"$f":"COUNTIFS(Entregas!$M$14:$M$1000,CALC!$A3,Entregas!$R$14:$R$1000,CALC!G$2)","v":0},{"$f":"COUNTIFS(Entregas!$M$14:$M$1000,CALC!$A3,Entregas!$R$14:$R$1000,CALC!H$2)","v":0},{"$f":"COUNTIFS(Entregas!$M$14:$M$1000,CALC!$A3,Entregas!$R$14:$R$1000,CALC!I$2)","v":0},{"$f":"COUNTIFS(Entregas!$M$14:$M$1000,CALC!$A3,Entregas!$R$14:$R$1000,CALC!J$2)","v":0},{"$f":"COUNTIFS(Entregas!$M$14:$M$1000,CALC!$A3,Entregas!$R$14:$R$1000,CALC!K$2)","v":0},{"$f":"COUNTIFS(Entregas!$M$14:$M$1000,CALC!$A3,Entregas!$R$14:$R$1000,CALC!L$2)","v":0},{"$f":"COUNTIFS(Entregas!$M$14:$M$1000,CALC!$A3,Entregas!$R$14:$R$1000,CALC!M$2)","v":0},{"$f":"SUM(B3:M3)","v":0},null,null,null,"EM SEPARAÇÃO"]
["ENTREGA ATRASADA",{"$f":"COUNTIFS(Entregas!$M$14:$M$1000,CALC!$A4,Entregas!$R$14:$R$1000,CALC!B$2)","v":0},{"$f":"COUNTIFS(Entregas!$M$14:$M$1000,CALC!$A4,Entregas!$R$14:$R$1000,CALC!C$2)","v":0},{"$f":"COUNTIFS(Entregas!$M$14:$M$1000,CALC!$A4,Entregas!$R$14:$R$1000,CALC!D$2)","v":0},{"$f":"COUNTIFS(Entregas!$M$14:$M$1000,CALC!$A4,Entregas!$R$14:$R$1000,CALC!E$2)","v":0},{"$f":"COUNTIFS(Entregas!$M$14:$M$1000,CALC!$A4,Entregas!$R$14:$R$1000,CALC!F$2)","v":0},{"$f":"COUNTIFS(Entregas!$M$14:$M$1000,CALC!$A4,Entregas!$R$14:$R$1000,CALC!G$2)","v":0},{"$f":"COUNTIFS(Entregas!$M$14:$M$1000,CALC!$A4,Entregas!$R$14:$R$1000,CALC!H$2)","v":0},{"$f":"COUNTIFS(Entregas!$M$14:$M$1000,CALC!$A4,Entregas!$R$14:$R$1000,CALC!I$2)","v":0},{"$f":"COUNTIFS(Entregas!$M$14:$M$1000,CALC!$A4,Entregas!$R$14:$R$1000,CALC!J$2)","v":0},{"$f":"COUNTIFS(Entregas!$M$14:$M$1000,CALC!$A4,Entregas!$R$14:$R$1000,CALC!K$2)","v":3},{"$f":"COUNTIFS(Entregas!$M$14:$M$1000,CALC!$A4,Entregas!$R$14:$R$1000,CALC!L$2)","v":0},{"$f":"COUNTIFS(Entregas!$M$14:$M$1000,CALC!$A4,Entregas!$R$14:$R$1000,CALC!M$2)","v":0},{"$f":"SUM(B4:M4)","v":3},null,null,null,"DISPONÍVEL"]
["ENTREGOU NO PRAZO",{"$f":"COUNTIFS(Entregas!$M$14:$M$1000,CALC!$A5,Entregas!$R$14:$R$1000,CALC!B$2)","v":0},{"$f":"COUNTIFS(Entregas!$M$14:$M$1000,CALC!$A5,Entregas!$R$14:$R$1000,CALC!C$2)","v":0},{"$f":"COUNTIFS(Entregas!$M$14:$M$1000,CALC!$A5,Entregas!$R$14:$R$1000,CALC!D$2)","v":0},{"$f":"COUNTIFS(Entregas!$M$14:$M$1000,CALC!$A5,Entregas!$R$14:$R$1000,CALC!E$2)","v":0},{"$f":"COUNTIFS(Entregas!$M$14:$M$1000,CALC!$A5,Entregas!$R$14:$R$1000,CALC!F$2)","v":0},{"$f":"COUNTIFS(Entregas!$M$14:$M$1000,CALC!$A5,Entregas!$R$14:$R$1000,CALC!G$2)","v":0},{"$f":"COUNTIFS(Entregas!$M$14:$M$1000,CALC!$A5,Entregas!$R$14:$R$1000,CALC!H$2)","v":0},{"$f":"COUNTIFS(Entregas!$M$14:$M$1000,CALC!$A5,Entregas!$R$14:$R$1000,CALC!I$2)","v":0},{"$f":"COUNTIFS(Entregas!$M$14:$M$1000,CALC!$A5,Entregas!$R$14:$R$1000,CALC!J$2)","v":0},{"$f":"COUNTIFS(Entregas!$M$14:$M$1000,CALC!$A5,Entregas!$R$14:$R$1000,CALC!K$2)","v":3},{"$f":"COUNTIFS(Entregas!$M$14:$M$1000,CALC!$A5,Entregas!$R$14:$R$1000,CALC!L$2)","v":0},{"$f":"COUNTIFS(Entregas!$M$14:$M$1000,CALC!$A5,Entregas!$R$14:$R$1000,CALC!M$2)","v":0},3,null,null,null,"PROGRAMAR ENTREGA"]
["ENTREGOU ATRASADO",{"$f":"COUNTIFS(Entregas!$M$14:$M$1000,CALC!$A6,Entregas!$R$14:$R$1000,CALC!B$2)","v":0},{"$f":"COUNTIFS(Entregas!$M$14:$M$1000,CALC!$A6,Entregas!$R$14:$R$1000,CALC!C$2)","v":0},{"$f":"COUNTIFS(Entregas!$M$14:$M$1000,CALC!$A6,Entregas!$R$14:$R$1000,CALC!D$2)","v":0},{"$f":"COUNTIFS(Entregas!$M$14:$M$1000,CALC!$A6,Entregas!$R$14:$R$1000,CALC!E$2)","v":0},{"$f":"COUNTIFS(Entregas!$M$14:$M$1000,CALC!$A6,Entregas!$R$14:$R$1000,CALC!F$2)","v":0},{"$f":"COUNTIFS(Entregas!$M$14:$M$1000,CALC!$A6,Entregas!$R$14:$R$1000,CALC!G$2)","v":0},{"$f":"COUNTIFS(Entregas!$M$14:$M$1000,CALC!$A6,Entregas!$R$14:$R$1000,CALC!H$2)","v":0},{"$f":"COUNTIFS(Entregas!$M$14:$M$1000,CALC!$A6,Entregas!$R$14:$R$1000,CALC!I$2)","v":0},{"$f":"COUNTIFS(Entregas!$M$14:$M$1000,CALC!$A6,Entregas!$R$14:$R$1000,CALC!J$2)","v":0},{"$f":"COUNTIFS(Entregas!$M$14:$M$1000,CALC!$A6,Entregas!$R$14:$R$1000,CALC!K$2)","v":1},{"$f":"COUNTIFS(Entregas!$M$14:$M$1000,CALC!$A6,Entregas!$R$14:$R$1000,CALC!L$2)","v":0},{"$f":"COUNTIFS(Entregas!$M$14:$M$1000,CALC!$A6,Entregas!$R$14:$R$1000,CALC!M$2)","v":0},1,null,null,null,"COM A TRANSPORTADORA"]
["TOTAL ENTREGAS",{"$f":"SUM(B3:B6)","v":0},{"$f":"SUM(C3:C6)","v":0},0,0,0,0,0,0,0,7,0,0,7]
[]
["TEMPO ENTREGA",{"$f":"SUMIF(Entregas!$R$14:$R$1000,CALC!B$2,Entregas!$L$14:$L$1000)","v":0},{"$f":"SUMIF(Entregas!$R$14:$R$1000,CALC!C$2,Entregas!$L$14:$L$1000)","v":0},{"$f":"SUMIF(Entregas!$R$14:$R$1000,CALC!D$2,Entregas!$L$14:$L$1000)","v":0},{"$f":"SUMIF(Entregas!$R$14:$R$1000,CALC!E$2,Entregas!$L$14:$L$1000)","v":0},{"$f":"SUMIF(Entregas!$R$14:$R$1000,CALC!F$2,Entregas!$L$14:$L$1000)","v":0},{"$f":"SUMIF(Entregas!$R$14:$R$1000,CALC!G$2,Entregas!$L$14:$L$1000)","v":0},{"$f":"SUMIF(Entregas!$R$14:$R$1000,CALC!H$2,Entregas!$L$14:$L$1000)","v":0},{"$f":"SUMIF(Entregas!$R$14:$R$1000,CALC!I$2,Entregas!$L$14:$L$1000)","v":0},{"$f":"SUMIF(Entregas!$R$14:$R$1000,CALC!J$2,Entregas!$L$14:$L$1000)","v":0},{"$f":"SUMIF(Entregas!$R$14:$R$1000,CALC!K$2,Entregas!$L$14:$L$1000)","v":1450},{"$f":"SUMIF(Entregas!$R$14:$R$1000,CALC!L$2,Entregas!$L$14:$L$1000)","v":0},{"$f":"SUMIF(Entregas!$R$14:$R$1000,CALC!M$2,Entregas!$L$14:$L$1000)","v":0}]
["Tempo Médio das Entregas",{"$f":"IFERROR(B9/B7,0)","v":0},{"$f":"IFERROR(C9/C7,0)","v":0},0,0,0,0,0,0,0,207.14285714285714,0,0]
[]
["PEDIDO RECEBIDO",{"$f":"COUNTIF(Entregas!$F$14:$F$1000,A12)","v":1}]
["EM SEPARAÇÃO",{"$f":"COUNTIF(Entregas!$F$14:$F$1000,A13)","v":2}]
["DISPONÍVEL",{"$f":"COUNTIF(Entregas!$F$14:$F$1000,A14)","v":2}]
["PROGRAMAR ENTREGA",{"$f":"COUNTIF(Entregas!$F$14:$F$1000,A15)","v":1}]
["COM A TRANSPORTADORA",{"$f":"COUNTIF(Entregas!$F$14:$F$1000,A16)","v":1}]